Workbook

Sheet ORÇAMENTO
A1: <---- NUMERAR SERVIÇOS PARA CPU | C1: Ministério do Desenvolvimento Regional
C2: Companhia de Desenvolvimento dos Vales do São Francisco e do Parnaíba
C3: 1ª Superintendência Regional
B5: OBRA: | C5: RECAPEAMENTO E PAVIMENTAÇÃO ASFÁLTICA EM CBUQ - VIAS URBANAS DIVERSAS (SERRA DA SAUDADE / MG) - ITEM 2
B6: DATA: | C6: SETEMBRO / 2023 | G6: BDI Serviços: | I6: ='BDI SERV'!D31/100 -> 0.2149
B7: PRAZO DE EXECUÇÃO: 180 DIAS | G7: BDI Serviços: | I7: ='BDI FORN'!D31/100 -> 0.15
B8: ITEM | C8: DISCRIMINAÇÃO | D8: REFER. | E8: UNID. | F8: QUANT. | G8: P. UNITÁRIO | H8: P.UNIT.C/ BDI | I8: P. TOTAL
A9: A | B9: 1 | C9: SERVIÇOS PRELIMINARES | I9: =SUM(I10:I14) -> 221440.67
A10: 1 | B10: 1.1 | C10: MOBILIZAÇÃO E DESMOBILIZAÇÃO | D10: CPU.1 | E10: GL | F10: 1 | G10: =VLOOKUP(A10,CPU!$A$1:$N$4709,9) -> 13860.2 | H10: =VLOOKUP(A10,CPU!$A$1:$N$4709,10) -> 16838.76 | I10: =ROUND(F10*H10,2) -> 16838.76
A11: 2 | B11: 1.2 | C11: ADMINISTRAÇÃO LOCAL | D11: CPU.2 | E11: GL | F11: 1 | G11: =VLOOKUP(A11,CPU!$A$1:$N$4709,9) -> 148226.58 | H11: =VLOOKUP(A11,CPU!$A$1:$N$4709,10) -> 180080.47 | I11: =ROUND(F11*H11,2) -> 180080.47
A12: 3 | B12: 1.3 | C12: CANTEIRO DE OBRAS | D12: CPU.3 | E12: GL | F12: 1 | G12: =VLOOKUP(A12,CPU!$A$1:$N$4709,9) -> 13531.5 | H12: =VLOOKUP(A12,CPU!$A$1:$N$4709,10) -> 16439.42 | I12: =ROUND(F12*H12,2) -> 16439.42
A13: 4 | B13: 1.4 | C13: PLACA DE OBRA EM CHAPA DE AÇO GALVANIZADO | D13: 103689 | E13: M2 | F13: 6 | G13: =VLOOKUP(A13,CPU!$A$1:$N$4709,9) -> 340.5 | H13: =VLOOKUP(A13,CPU!$A$1:$N$4709,10) -> 413.67 | I13: =ROUND(F13*H13,2) -> 2482.02
A14: 5 | B14: 1.5 | C14: SERVIÇOS TOPOGRÁFICOS PARA PAVIMENTAÇÃO, INCLUSIVE NOTA DE SERVIÇO, ACOMPANHAMENTO E GREIDE | D14: 78472 | E14: M2 | F14: 13999.998 | G14: =VLOOKUP(A14,CPU!$A$1:$N$4709,9) -> 0.33 | H14: =VLOOKUP(A14,CPU!$A$1:$N$4709,10) -> 0.4 | I14: =ROUND(F14*H14,2) -> 5600
A15: B | B15: 2 | C15: PAVIMENTAÇÃO | I15: =SUM(I16:I22) -> 458046.5
A16: 6 | B16: 2.1 | C16: ESCAVAÇÃO HORIZONTAL EM SOLO DE 1A CATEGORIA | D16: 101116 | E16: M3 | F16: 2800 | G16: =VLOOKUP(A16,CPU!$A$1:$N$4709,9) -> 2.2 | H16: =VLOOKUP(A16,CPU!$A$1:$N$4709,10) -> 2.67 | I16: =ROUND(F16*H16,2) -> 7476
A17: 7 | B17: 2.2 | C17: CARGA, MANOBRA E DESCARGA DE SOLOS E MATERIAIS GRANULARES EM CAMINHÃO BASCULANTE | D17: 100976 | E17: M3 | F17: 2800 | G17: =VLOOKUP(A17,CPU!$A$1:$N$4709,9) -> 8.71 | H17: =VLOOKUP(A17,CPU!$A$1:$N$4709,10) -> 10.58 | I17: 29624
A18: 8 | B18: 2.3 | C18: REGULARIZAÇÃO E COMPACTAÇÃO DO SUBLEITO | D18: 100576 | E18: M2 | F18: 14000 | G18: =VLOOKUP(A18,CPU!$A$1:$N$4709,9) -> 2.57 | H18: =VLOOKUP(A18,CPU!$A$1:$N$4709,10) -> 3.12 | I18: 43680
A19: 9 | B19: 2.4 | C19: EXECUÇÃO E COMPACTAÇÃO DE BASE E OU SUB BASE PARA PAVIMENTAÇÃO DE BICA CORRIDA - EXCLUSIVE CARGA E TRANSPORTE | D19: 96396 | E19: M3 | F19: 2000 | G19: =VLOOKUP(A19,CPU!$A$1:$N$4709,9) -> 104.95 | H19: =VLOOKUP(A19,CPU!$A$1:$N$4709,10) -> 127.5 | I19: 255000
A20: 10 | B20: 2.5 | C20: IMPRIMAÇÃO COM EMULSÃO ASFÁLTICA (EAI) | D20: 96401 | E20: M2 | F20: 14000 | G20: =VLOOKUP(A20,CPU!$A$1:$N$4709,9) -> 1.23 | H20: =VLOOKUP(A20,CPU!$A$1:$N$4709,10) -> 1.49 | I20: 20860
A21: 11 | B21: 2.6 | C21: PINTURA DE LIGAÇÃO COM EMULSÃO ASFÁLTICA RR-1C | D21: 96402 | E21: M2 | F21: 14600 | G21: =VLOOKUP(A21,CPU!$A$1:$N$4709,9) -> 1.01 | H21: =VLOOKUP(A21,CPU!$A$1:$N$4709,10) -> 1.23 | I21: 17958
A22: 12 | B22: 2.7 | C22: EXECUÇÃO DE PAVIMENTO COM APLICAÇÃO DE CONCRETO ASFÁLTICO USINADO A QUENTE (CBUQ), CAMADA DE ROLAMENTO - EXCLUSIVE TRANSPORTE | D22: 95995 | E22: M3 | F22: 530 | G22: =VLOOKUP(A22,CPU!$A$1:$N$4709,9) -> 129.6 | H22: =VLOOKUP(A22,CPU!$A$1:$N$4709,10) -> 157.45 | I22: 83448.5
A23: C | B23: 3 | C23: TRANSPORTE DE MATERIAIS | I23: =SUM(I24:I25) -> 240150
A24: 13 | B24: 3.1 | C24: TRANSPORTE COM CAMINHÃO BASCULANTE, EM VIA URBANA PAVIMENTADA | D24: 95427 | E24: M3XKM | F24: 260000.0016 | G24: =VLOOKUP(A24,CPU!$A$1:$N$4709,9) -> 0.73 | H24: =VLOOKUP(A24,CPU!$A$1:$N$4709,10) -> 0.89 | I24: =ROUND(F24*H24,2) -> 231400
A25: 14 | B25: 3.2 | C25: TRANSPORTE COM CAMINHÃO CARROCERIA 9T, EM VIA URBANA PAVIMENTADA | D25: 100947 | E25: TXKM | F25: 7000.003631 | G25: =VLOOKUP(A25,CPU!$A$1:$N$4709,9) -> 1.03 | H25: =VLOOKUP(A25,CPU!$A$1:$N$4709,10) -> 1.25 | I25: =ROUND(F25*H25,2) -> 8750
A26: D | B26: 4 | C26: TRANSPORTE DE MATERIAL ASFÁLTICO (BDI DIFERENCIADO) | I26: =SUM(I27:I28) -> 82048.07
A27: 15 | B27: 4.1 | C27: TRANSPORTE DE MASSA ASFÁLTICA COM CAMINHÃO BASCULANTE, EM VIA URBANA PAVIMENTADA (BDI DIFERENCIADO) | D27: 95430 | E27: TXKM | F27: 150636.44 | G27: =VLOOKUP(A27,CPU!$A$1:$N$4709,9) -> 0.45 | H27: =VLOOKUP(A27,CPU!$A$1:$N$4709,10) -> 0.52 | I27: =ROUND(F27*H27,2) -> 78330.95
A28: 16 | B28: 4.2 | C28: TRANSPORTE COM CAMINHÃO TANQUE DE TRANSPORTE DE MATERIAL ASFÁLTICO DE 30000 L, EM VIA URBANA PAVIMENTADA (BDI DIFERENCIADO) | D28: 102331 | E28: TXKM | F28: 6195.2 | G28: =VLOOKUP(A28,CPU!$A$1:$N$4709,9) -> 0.52 | H28: =VLOOKUP(A28,CPU!$A$1:$N$4709,10) -> 0.6 | I28: =ROUND(F28*H28,2) -> 3717.12
A29: E | B29: 5 | C29: DRENAGEM E OBRAS COMPLEMENTARES | I29: =SUM(I30:I36) -> 455644.76
A30: 17 | B30: 5.1 | C30: GUIA (MEIO-FIO) E SARJETA CONJUGADOS DE CONCRETO, MOLDADA IN LOCO EM M CR 57,38 TRECHO RETO COM EXTRUSORA, 45 CM BASE (15 CM BASE DA GUIA + 30 CM BAS E DA SARJETA) X 22 CM ALTURA | D30: 94267 | E30: M | F30: 4600 | G30: =VLOOKUP(A30,CPU!$A$1:$N$4709,9) -> 57.32 | H30: =VLOOKUP(A30,CPU!$A$1:$N$4709,10) -> 69.64 | I30: =ROUND(F30*H30,2) -> 320344
A31: 17.1 | B31: 5.2 | C31: DESCIDA D’ÁGUA DE ATERROS EM DEGRAUS - DAD 04 - AREIA E BRITA COMERCIAIS | D31: 2003411 | E31: M | F31: 30 | G31: =VLOOKUP(A31,CPU!$A$1:$N$4709,9) -> 603.86 | H31: =VLOOKUP(A31,CPU!$A$1:$N$4709,10) -> 733.63 | I31: =ROUND(F31*H31,2) -> 22008.9
A32: 17.2 | B32: 5.3 | C32: BACIA DE DISSIPAÇÃO, TIPO BACIA EM PEDRA DE MÃO FIXADA COM CONCRETO (DEB 01, 02), COM PREPARO MANUAL, FCK = 20 MPA, LANÇADO MANUALMENTE, INCLUINDO MATERIAIS E FÔRMAS | D32: 103930 | E32: M | F32: 10 | G32: =VLOOKUP(A32,CPU!$A$1:$N$4709,9) -> 781.01 | H32: =VLOOKUP(A32,CPU!$A$1:$N$4709,10) -> 948.85 | I32: 9488.5
A33: 18 | B33: 5.4 | C33: FORNECIMENTO E INSTALAÇÃO DE PLACA DE SINALIZAÇÃO VIÁRIA - REGULAMENTAÇÃO CIRCULAR | D33: CPU.4 | E33: UN. | F33: 12 | G33: =VLOOKUP(A33,CPU!$A$1:$N$4709,9) -> 422.8 | H33: =VLOOKUP(A33,CPU!$A$1:$N$4709,10) -> 513.66 | I33: 6163.92
A34: 19 | B34: 5.5 | C34: FORNECIMENTO E INSTALAÇÃO DE PLACA DE SINALIZAÇÃO VIÁRIA - REGULAMENTAÇÃO (PARE) | D34: CPU.5 | E34: UN. | F34: 24 | G34: =VLOOKUP(A34,CPU!$A$1:$N$4709,9) -> 482.72 | H34: =VLOOKUP(A34,CPU!$A$1:$N$4709,10) -> 586.46 | I34: 14075.04
A35: 20 | B35: 5.6 | C35: FORNECIMENTO E INSTALAÇÃO DE PLACA DE AÇO PARA IDENTIFICACAO DE RUA, *45 CM X 20* CM, INCLUSIVE SUPORTE EM TUBO DE AÇO GALVANIZADO (02 PLACAS POR SUPORTE) | D35: CPU.6 | E35: UN. | F35: 40 | G35: =VLOOKUP(A35,CPU!$A$1:$N$4709,9) -> 375.43 | H35: =VLOOKUP(A35,CPU!$A$1:$N$4709,10) -> 456.11 | I35: 18244.4
A36: 21 | B36: 5.13 | C36: PINTURA DE EIXO VIÁRIO SOBRE ASFALTO COM TINTA RETRORREFLETIVA A BASE DE RESINA ACRÍLICA COM MICROESFERAS DE VIDRO, APLICAÇÃO MECÂNICA COM DEMARCADORA AUTOPROPELIDA | D36: 102512 | E36: M2 | F36: 9200 | G36: =VLOOKUP(A36,CPU!$A$1:$N$4709,9) -> 5.84 | H36: =VLOOKUP(A36,CPU!$A$1:$N$4709,10) -> 7.1 | I36: 65320
A37: F | B37: 6 | C37: FORNECIMENTOS - MATERIAL ASFÁLTICO (BDI DIFERENCIADO) | I37: =SUM(I38:I40) -> 981012.82
A38: 25 | B38: 6.1 | C38: AQUISIÇÃO DE EMULSÃO ASFÁLTICA PARA IMPRIMAÇÃO (EAI) - EXCLUSIVE TRANSPORTE | D38: CPU.7 | E38: T | F38: 19 | G38: =VLOOKUP(A38,CPU!$A$1:$N$4709,9) -> 2689.76 | H38: =VLOOKUP(A38,CPU!$A$1:$N$4709,10) -> 3093.22 | I38: =ROUND(F38*H38,2) -> 58771.18
A39: 26 | B39: 6.2 | C39: AQUISIÇÃO DE EMULSAO ASFALTICA CATIONICA RR-1C - EXCLUSIVE TRANSPORTE | D39: CPU.8 | E39: T | F39: 7 | G39: =VLOOKUP(A39,CPU!$A$1:$N$4709,9) -> 2706.7 | H39: =VLOOKUP(A39,CPU!$A$1:$N$4709,10) -> 3112.71 | I39: =ROUND(F39*H39,2) -> 21788.97
A40: 27 | B40: 6.3 | C40: AQUISIÇÃO DE CONCRETO BETUMINOSO USINADO A QUENTE (CBUQ) PARA PAVIMENTACAO ASFALTICA, PADRAO DNIT, FAIXA C, COM CAP 50/70 - EXCLUSIVE TRANSPORTE | D40: CPU.9 | E40: T | F40: 1350.004 | G40: =VLOOKUP(A40,CPU!$A$1:$N$4709,9) -> 580 | H40: =VLOOKUP(A40,CPU!$A$1:$N$4709,10) -> 667 | I40: =ROUND(F40*H40,2) -> 900452.67
B41: TOTAL GERAL DA OBRA COM BDI | I41: =SUM(I9,I15,I23,I29,I37,I26) -> 2438342.82

Sheet CPU
A1: 1 | B1: CODEVASF | E1: COMPOSIÇÃO DE PREÇO UNITÁRIO | I1: =H11 -> 13860.2 | J1: =H13 -> 16838.76 | K1: BDI CALCULADO: | M1: =ORÇAMENTO!I6 -> 0.2149
B2: OBRA: | C2: =ORÇAMENTO!C5 -> RECAPEAMENTO E PAVIMENTAÇÃO ASFÁLTICA EM CBUQ - VIAS URBANAS DIVERSAS (SERRA DA SAUDADE / MG) - ITEM 2 | G2: DATA: | H2: =ORÇAMENTO!C6 -> SETEMBRO / 2023 | K2: BDI DIFERENCIADO: | M2: ='BDI FORN'!D31/100 -> 0.15
B3: SERVIÇO: | C3: =VLOOKUP(A1,ORÇAMENTO!A10:I30,3) -> MOBILIZAÇÃO E DESMOBILIZAÇÃO | E3: Referência: | F3: =VLOOKUP(A1,ORÇAMENTO!$A$10:$I$30,4) -> CPU.1 | G3: UNIDADE: | H3: =VLOOKUP(A1,ORÇAMENTO!A10:I30,5) -> GL
B5: TIPO ITEM | C5: CODIGO ITEM | D5: DESCRIÇÃO ITEM | E5: UNIDADE ITEM | F5: COEFICIENTE | G5: PRECO UNITARIO | H5: CUSTO TOTAL
B6: COMPOSICAO | C6: 89876 | D6: CAMINHÃO BASCULANTE 14 M3, COM CAVALO MECÂNICO DE CAPACIDADE MÁXIMA DE TRAÇÃO COMBINADO DE 36000 KG, POTÊNCIA 286 CV, INCLUSIVE SEMIREBOQUE COM CAÇAMBA METÁLICA | E6: CHP DIURNO. | F6: 8 | G6: 316.13 | H6: =ROUNDDOWN(F6*G6,2) -> 2529.04
B7: COMPOSICAO | C7: 89877 | D7: CAMINHÃO BASCULANTE 14 M3, COM CAVALO MECÂNICO DE CAPACIDADE MÁXIMA DE TRAÇÃO COMBINADO DE 36000 KG, POTÊNCIA 286 CV, INCLUSIVE SEMIREBOQUE COM CAÇAMBA METÁLICA | E7: CHI DIURNO. | F7: 8 | G7: 89.75 | H7: =ROUNDDOWN(F7*G7,2) -> 718
B8: COMPOSICAO | C8: 5914640 | D8: TRANSPORTE COM CAVALO MECÂNICO COM SEMIRREBOQUE COM CAPACIDADE DE 30 T - RODOVIA PAVIMENTADA | E8: T.KM | F8: 5805 | G8: 0.58 | H8: =ROUNDDOWN(F8*G8,2) -> 3366.9
B9: COMPOSIÇÃO | C9: 88316 | D9: SERVENTE COM ENCARGOS COMPLEMENTARES | E9: H | F9: 16 | G9: 19.76 | H9: =ROUNDDOWN(F9*G9,2) -> 316.16
B10: PRODUÇÃO DA EQUIPE | E10: 0.5 | F10: CUSTO | H10: =SUM(H6:H9) -> 6930.1
B11: TOTAL | H11: =H10/E10 -> 13860.2 | I11: OK
B12: BDI % | H12: =1+$M$1 -> 1.2149
B13: TOTAL DO SERVIÇO - R$ | H13: =ROUND(H11*H12,2) -> 16838.76
A15: =A1+1 -> 2 | B15: CODEVASF | E15: COMPOSIÇÃO DE PREÇO UNITÁRIO | I15: =H29 -> 148226.58 | J15: =H31 -> 180080.47
B16: OBRA: | C16: =$C$2 -> RECAPEAMENTO E PAVIMENTAÇÃO ASFÁLTICA EM CBUQ - VIAS URBANAS DIVERSAS (SERRA DA SAUDADE / MG) - ITEM 2 | G16: DATA: | H16: =$H$2 -> SETEMBRO / 2023
B17: SERVIÇO: | C17: =VLOOKUP(A15,ORÇAMENTO!$A$10:$I$30,3) -> ADMINISTRAÇÃO LOCAL | E17: SINAPI | F17: =VLOOKUP(A15,ORÇAMENTO!$A$10:$I$30,4) -> CPU.2 | G17: UNIDADE: | H17: =VLOOKUP(A15,ORÇAMENTO!$A$10:$I$30,5) -> GL
B19: TIPO ITEM | C19: CODIGO ITEM | D19: DESCRIÇÃO ITEM | E19: UNIDADE ITEM | F19: COEFICIENTE | G19: PRECO UNITARIO | H19: CUSTO TOTAL
B20: INSUMO | C20: 14250 | D20: ENERGIA ELÉTRICA | E20: kwh | F20: 60 | G20: 0.94 | H20: =ROUNDDOWN(F20*G20,2) -> 56.4
B21: INSUMO | C21: 44480 | D21: TARIFA "A" - ÁGUA/ESGOTO | E21: m³ | F21: 6 | G21: 17.78 | H21: 106.68
B22: COTAÇÃO | C22: MERC. | D22: TELEFONE (PLANO CONTROLE) | E22: UNID | F22: 2 | G22: 59.9 | H22: 119.8
B23: INSUMO | C23: ED-50155 SEINFRA | D23: BANHEIRO QUÍMICO 110 X 120 X 230 CM COM MANUTENÇÃO (CONSIDERANDO OBRAS SIMULTÂNEAS) | E23: MÊS | F23: 2 | G23: 820 | H23: 1640
B24: COMPOSICAO | C24: 90777 | D24: Engenheiro Civil Júnior com encargos complementares | E24: H | F24: 55 | G24: 114.12 | H24: 6276.6
B25: COMPOSICAO | C25: 90776 | D25: Encarregado Geral com encargos complementares | E25: H | F25: 220 | G25: 57.73 | H25: 12700.6
B26: COMPOSICAO | C26: 88321 | D26: Tecnico de Laboratório com encargos complementares | E26: H | F26: 55 | G26: 45.45 | H26: 2499.75
B27: COMPOSICAO | C27: 90772 | D27: Auxiliar de escritório com encargos complementares | E27: H | F27: 55 | G27: 23.72 | H27: 1304.6
B28: PRODUÇÃO DA EQUIPE | E28: =1/6 -> 0.1666666667 | F28: CUSTO | H28: =SUM(H20:H27) -> 24704.43
B29: TOTAL | H29: =ROUND(H28/E28,2) -> 148226.58 | I29: OK
B30: BDI % | H30: =1+$M$1 -> 1.2149
B31: TOTAL DO SERVIÇO - R$ | H31: =ROUND(H29*H30,2) -> 180080.47
A33: =A15+1 -> 3 | B33: CODEVASF | E33: COMPOSIÇÃO DE PREÇO UNITÁRIO | I33: =H43 -> 13531.5 | J33: =H45 -> 16439.42
B34: OBRA: | C34: =$C$2 -> RECAPEAMENTO E PAVIMENTAÇÃO ASFÁLTICA EM CBUQ - VIAS URBANAS DIVERSAS (SERRA DA SAUDADE / MG) - ITEM 2 | G34: DATA: | H34: =$H$2 -> SETEMBRO / 2023
B35: SERVIÇO: | C35: =VLOOKUP(A33,ORÇAMENTO!$A$10:$I$30,3) -> CANTEIRO DE OBRAS | E35: SINAPI | F35: =VLOOKUP(A33,ORÇAMENTO!$A$10:$I$30,4) -> CPU.3 | G35: UNIDADE: | H35: =VLOOKUP(A33,ORÇAMENTO!$A$10:$I$30,5) -> GL
B37: TIPO ITEM | C37: CODIGO ITEM | D37: DESCRIÇÃO ITEM | E37: UNIDADE ITEM | F37: COEFICIENTE | G37: PRECO UNITARIO | H37: CUSTO TOTAL
B38: INSUMO | C38: 10775 | D38: LOCACAO DE CONTAINER 2,30 X 6,00 M, ALT. 2,50 M, COM 1 SANITARIO, PARA ESCRITORIO, COMPLETO, SEM DIVISORIAS INTERNAS | E38: MÊS | F38: 6 | G38: 975 | H38: =ROUNDDOWN(F38*G38,2) -> 5850
B39: INSUMO | C39: 10779 | D39: LOCACAO DE CONTAINER 2,30 X 4,30 M, ALT. 2,50 M, P/ SANITARIO, C/ 5 BACIAS, 1 LAVATORIO E 4 MICTORIOS | E39: MÊS | F39: 6 | G39: 1218.75 | H39: =ROUNDDOWN(F39*G39,2) -> 7312.5
B40: INSUMO | C40: 37525 | D40: TELA PLASTICA TECIDA LISTRADA BRANCA E LARANJA, TIPO GUARDA CORPO, EM POLIETILENO MONOFILADO, ROLO 1,20 X 50 M (L X C) | E40: M | F40: 100 | G40: 3.69 | H40: =ROUNDDOWN(F40*G40,2) -> 369
H41: =ROUNDDOWN(F41*G41,2) -> 0
B42: PRODUÇÃO DA EQUIPE | E42: 1 | F42: CUSTO | H42: =SUM(H38:H41) -> 13531.5
B43: TOTAL | H43: =H42/E42 -> 13531.5 | I43: OK
B44: BDI % | H44: =1+$M$1 -> 1.2149
B45: TOTAL DO SERVIÇO - R$ | H45: =ROUND(H43*H44,2) -> 16439.42
A47: =A33+1 -> 4 | B47: CODEVASF | E47: COMPOSIÇÃO DE PREÇO UNITÁRIO | I47: =H61 -> 340.5 | J47: =H63 -> 413.67
B48: OBRA: | C48: =$C$2 -> RECAPEAMENTO E PAVIMENTAÇÃO ASFÁLTICA EM CBUQ - VIAS URBANAS DIVERSAS (SERRA DA SAUDADE / MG) - ITEM 2 | G48: DATA: | H48: =$H$2 -> SETEMBRO / 2023
B49: SERVIÇO: | C49: =VLOOKUP(A47,ORÇAMENTO!$A$10:$I$30,3) -> PLACA DE OBRA EM CHAPA DE AÇO GALVANIZADO | E49: SINAPI | F49: =VLOOKUP(A47,ORÇAMENTO!$A$10:$I$30,4) -> 103689 | G49: UNIDADE: | H49: =VLOOKUP(A47,ORÇAMENTO!$A$10:$I$30,5) -> M2
B51: TIPO ITEM | C51: CODIGO ITEM | D51: DESCRIÇÃO ITEM | E51: UNIDADE ITEM | F51: COEFICIENTE | G51: PRECO UNITARIO | H51: CUSTO TOTAL
B52: INSUMO | C52: 4509 | D52: SARRAFO *2,5 X 10* CM EM PINUS, MISTA OU EQUIVALENTE DA REGIAO - BRUTA | E52: M | F52: 3,2083000 | G52: 4,41 | H52: =ROUNDDOWN(F52*G52,2) -> 14.14
B53: INSUMO | C53: 4813 | D53: PLACA DE OBRA (PARA CONSTRUCAO CIVIL) EM CHAPA GALVANIZADA *N. 22*, ADESIVADA, DE *2,4 X 1,2* M (SEM POSTES PARA FIXACAO) | E53: M2 | F53: 1,0000000 | G53: 250,00 | H53: 250
B54: INSUMO | C54: 5065 | D54: PREGO DE ACO POLIDO COM CABECA 10 X 10 (7/8 X 17) | E54: KG | F54: 0,0113000 | G54: 36,57 | H54: 0.41
B55: INSUMO | C55: 5069 | D55: PREGO DE ACO POLIDO COM CABECA 17 X 27 (2 1/2 X 11) | E55: KG | F55: 0,0132000 | G55: 19,59 | H55: 0.25
B56: COMPOSICAO | C56: 88262 | D56: CARPINTEIRO DE FORMAS COM ENCARGOS COMPLEMENTARES | E56: H | F56: 0,3729000 | G56: 27,05 | H56: 10.08
B57: COMPOSICAO | C57: 88316 | D57: SERVENTE COM ENCARGOS COMPLEMENTARES | E57: H | F57: 1,1186000 | G57: 19,76 | H57: 22.1
B58: INSUMO | C58: 4115 | D58: MADEIRA ROLICA TRATADA, D = 12 A 15 CM, H = 3,00 M, EM EUCALIPTO OU EQUIVALENTE | E58: M | F58: 2 | G58: 21.76 | H58: 43.52
H59: 0
B60: PRODUÇÃO DA EQUIPE | E60: 1 | F60: CUSTO | H60: =SUM(H52:H59) -> 340.5
B61: TOTAL | H61: =H60/E60 -> 340.5 | I61: OK
B62: BDI % | H62: =1+$M$1 -> 1.2149
B63: TOTAL DO SERVIÇO - R$ | H63: =ROUND(H61*H62,2) -> 413.67
A65: =A47+1 -> 5 | B65: CODEVASF | E65: COMPOSIÇÃO DE PREÇO UNITÁRIO | I65: =H77 -> 0.33 | J65: =H79 -> 0.4
B66: OBRA: | C66: =$C$2 -> RECAPEAMENTO E PAVIMENTAÇÃO ASFÁLTICA EM CBUQ - VIAS URBANAS DIVERSAS (SERRA DA SAUDADE / MG) - ITEM 2 | G66: DATA: | H66: =$H$2 -> SETEMBRO / 2023
B67: SERVIÇO: | C67: =VLOOKUP(A65,ORÇAMENTO!$A$10:$I$30,3) -> SERVIÇOS TOPOGRÁFICOS PARA PAVIMENTAÇÃO, INCLUSIVE NOTA DE SERVIÇO, ACOMPANHAMENTO E GREIDE | E67: SINAPI | F67: =VLOOKUP(A65,ORÇAMENTO!$A$10:$I$30,4) -> 78472 | G67: UNIDADE: | H67: =VLOOKUP(A65,ORÇAMENTO!$A$10:$I$30,5) -> M2
B69: TIPO ITEM | C69: CODIGO ITEM | D69: DESCRIÇÃO ITEM | E69: UNIDADE ITEM | F69: COEFICIENTE | G69: PRECO UNITARIO | H69: CUSTO TOTAL
B70: COMPOSICAO | C70: 88253 | D70: AUXILIAR DE TOPÓGRAFO COM ENCARGOS COMPLEMENTARES | E70: H | F70: 0.0025 | G70: 21.57 | H70: =ROUNDDOWN(F70*G70,2) -> 0.05
B71: COMPOSICAO | C71: 88288 | D71: NIVELADOR COM ENCARGOS COMPLEMENTARES | E71: H | F71: 0.0025 | G71: 26.99 | H71: 0.06
B72: COMPOSICAO | C72: 88316 | D72: SERVENTE COM ENCARGOS COMPLEMENTARES | E72: H | F72: 0.0075 | G72: 19.76 | H72: 0.14
B73: COMPOSICAO | C73: 88597 | D73: DESENHISTA DETALHISTA COM ENCARGOS COMPLEMENTARES | E73: H | F73: 0.002 | G73: 29.72 | H73: 0.05
B74: COMPOSICAO | C74: 92145 | D74: CAMINHONETE CABINE SIMPLES COM MOTOR 1.6 FLEX, CÂMBIO MANUAL, POTÊNCIA 101/104 CV, 2 PORTAS | E74: CHP | F74: 0.0005 | G74: 74.75 | H74: 0.03
H75: 0
B76: PRODUÇÃO DA EQUIPE | E76: 1 | F76: CUSTO | H76: =SUM(H70:H75) -> 0.33
B77: TOTAL | H77: =H76/E76 -> 0.33 | I77: OK
B78: BDI % | H78: =1+$M$1 -> 1.2149
B79: TOTAL DO SERVIÇO - R$ | H79: =ROUND(H77*H78,2) -> 0.4
A81: =A65+1 -> 6 | B81: CODEVASF | E81: COMPOSIÇÃO DE PREÇO UNITÁRIO | I81: =H90 -> 2.2 | J81: =H92 -> 2.67
B82: OBRA: | C82: =$C$2 -> RECAPEAMENTO E PAVIMENTAÇÃO ASFÁLTICA EM CBUQ - VIAS URBANAS DIVERSAS (SERRA DA SAUDADE / MG) - ITEM 2 | G82: DATA: | H82: =$H$2 -> SETEMBRO / 2023
B83: SERVIÇO: | C83: =VLOOKUP(A81,ORÇAMENTO!$A$10:$I$30,3) -> ESCAVAÇÃO HORIZONTAL EM SOLO DE 1A CATEGORIA | E83: SINAPI | F83: =VLOOKUP(A81,ORÇAMENTO!$A$10:$I$30,4) -> 101116 | G83: UNIDADE: | H83: =VLOOKUP(A81,ORÇAMENTO!$A$10:$I$30,5) -> M3
B85: TIPO ITEM | C85: CODIGO ITEM | D85: DESCRIÇÃO ITEM | E85: UNIDADE ITEM | F85: COEFICIENTE | G85: PRECO UNITARIO | H85: CUSTO TOTAL
B86: COMPOSICAO | C86: 5847 | D86: TRATOR DE ESTEIRAS, POTÊNCIA 170 HP, PESO OPERACIONAL 19 T, CAÇAMBA 5,2 M3 | E86: CHP | F86: 0,0048000 | G86: 253,93 | H86: =ROUNDDOWN(F86*G86,2) -> 1.21
B87: COMPOSICAO | C87: 5849 | D87: TRATOR DE ESTEIRAS, POTÊNCIA 170 HP, PESO OPERACIONAL 19 T, CAÇAMBA 5,2 M3 | E87: CHI | F87: 0,0082000 | G87: 90,40 | H87: =ROUNDDOWN(F87*G87,2) -> 0.74
B88: COMPOSICAO | C88: 88316 | D88: SERVENTE COM ENCARGOS COMPLEMENTARES | E88: H | F88: 0,0131000 | G88: 19,76 | H88: =ROUNDDOWN(F88*G88,2) -> 0.25
B89: PRODUÇÃO DA EQUIPE | E89: 1 | F89: CUSTO | H89: =SUM(H86:H88) -> 2.2
B90: TOTAL | H90: =H89/E89 -> 2.2 | I90: OK
B91: BDI % | H91: =1+$M$1 -> 1.2149
B92: TOTAL DO SERVIÇO - R$ | H92: =ROUND(H90*H91,2) -> 2.67
A94: 7 | B94: CODEVASF | E94: COMPOSIÇÃO DE PREÇO UNITÁRIO | I94: =H104 -> 8.71 | J94: =H106 -> 10.58
B95: OBRA: | C95: =$C$2 -> RECAPEAMENTO E PAVIMENTAÇÃO ASFÁLTICA EM CBUQ - VIAS URBANAS DIVERSAS (SERRA DA SAUDADE / MG) - ITEM 2 | G95: DATA: | H95: =$H$2 -> SETEMBRO / 2023
B96: SERVIÇO: | C96: =VLOOKUP(A94,ORÇAMENTO!$A$10:$I$30,3) -> CARGA, MANOBRA E DESCARGA DE SOLOS E MATERIAIS GRANULARES EM CAMINHÃO BASCULANTE | E96: SINAPI | F96: =VLOOKUP(A94,ORÇAMENTO!$A$10:$I$30,4) -> 100976 | G96: UNIDADE: | H96: =VLOOKUP(A94,ORÇAMENTO!$A$10:$I$30,5) -> M3
B98: TIPO ITEM | C98: CODIGO ITEM | D98: DESCRIÇÃO ITEM | E98: UNIDADE ITEM | F98: COEFICIENTE | G98: PRECO UNITARIO | H98: CUSTO TOTAL
B99: COMPOSICAO | C99: 5940 | D99: PÁ CARREGADEIRA SOBRE RODAS, POTÊNCIA LÍQUIDA 128 HP, CAPACIDADE DA CAÇAMBA 1,7 A 2,8 M3, PESO OPERACIONAL 11632 KG | E99: CHP | F99: 0,0083000 | G99: 217,72 | H99: =ROUNDDOWN(F99*G99,2) -> 1.8
B100: COMPOSICAO | C100: 5942 | D100: PÁ CARREGADEIRA SOBRE RODAS, POTÊNCIA LÍQUIDA 128 HP, CAPACIDADE DA CAÇAMBA 1,7 A 2,8 M3, PESO OPERACIONAL 11632 KG | E100: CHI | F100: 0,0074000 | G100: 95,85 | H100: =ROUNDDOWN(F100*G100,2) -> 0.7
B101: COMPOSICAO | C101: 89883 | D101: CAMINHÃO BASCULANTE 18 M3, COM CAVALO MECÂNICO DE CAPACIDADE MÁXIMA DE TRAÇÃO COMBINADO DE 45000 KG, POTÊNCIA 330 CV, INCLUSIVE SEMIREBOQUE COM CAÇAMBA METÁLICA | E101: CHP | F101: 0,0153000 | G101: 348,45 | H101: =ROUNDDOWN(F101*G101,2) -> 5.33
B102: COMPOSICAO | C102: 89884 | D102: CAMINHÃO BASCULANTE 18 M3, COM CAVALO MECÂNICO DE CAPACIDADE MÁXIMA DE TRAÇÃO COMBINADO DE 45000 KG, POTÊNCIA 330 CV, INCLUSIVE SEMIREBOQUE COM CAÇAMBA METÁLICA | E102: CHI | F102: 0,0095000 | G102: 93,65 | H102: =ROUNDDOWN(F102*G102,2) -> 0.88
B103: PRODUÇÃO DA EQUIPE | E103: 1 | F103: CUSTO | H103: =SUM(H99:H102) -> 8.71
B104: TOTAL | H104: =H103/E103 -> 8.71 | I104: OK
B105: BDI % | H105: =1+$M$1 -> 1.2149
B106: TOTAL DO SERVIÇO - R$ | H106: =ROUND(H104*H105,2) -> 10.58
A108: 8 | B108: CODEVASF | E108: COMPOSIÇÃO DE PREÇO UNITÁRIO | I108: =H122 -> 2.57 | J108: =H124 -> 3.12
B109: OBRA: | C109: =$C$2 -> RECAPEAMENTO E PAVIMENTAÇÃO ASFÁLTICA EM CBUQ - VIAS URBANAS DIVERSAS (SERRA DA SAUDADE / MG) - ITEM 2 | G109: DATA: | H109: =$H$2 -> SETEMBRO / 2023
B110: SERVIÇO: | C110: =VLOOKUP(A108,ORÇAMENTO!$A$10:$I$30,3) -> REGULARIZAÇÃO E COMPACTAÇÃO DO SUBLEITO | E110: SICRO | F110: =VLOOKUP(A108,ORÇAMENTO!$A$10:$I$30,4) -> 100576 | G110: UNIDADE: | H110: M2
B112: TIPO ITEM | C112: CODIGO ITEM | D112: DESCRIÇÃO ITEM | E112: UNIDADE ITEM | F112: COEFICIENTE | G112: PRECO UNITARIO | H112: CUSTO TOTAL
B113: COMPOSICAO | C113: 5901 | D113: CAMINHÃO PIPA 10.000 L TRUCADO, PESO BRUTO TOTAL 23.000 KG, CARGA ÚTIL MÁXIMA 15.935 KG, DISTÂNCIA ENTRE EIXOS 4,8 M, POTÊNCIA 230 CV, INCLUSIVE TANQUE DE AÇO PARA TRANSPORTE DE ÁGUA | E113: CHP | F113: 0,0010000 | G113: 294,94 | H113: =ROUNDDOWN(F113*G113,2) -> 0.29
B114: COMPOSICAO | C114: 5903 | D114: CAMINHÃO PIPA 10.000 L TRUCADO, PESO BRUTO TOTAL 23.000 KG, CARGA ÚTIL MÁXIMA 15.935 KG, DISTÂNCIA ENTRE EIXOS 4,8 M, POTÊNCIA 230 CV, INCLUSIVE TANQUE DE AÇO PARA TRANSPORTE DE ÁGUA | E114: CHI | F114: 0,0070000 | G114: 72,55 | H114: 0.5
B115: COMPOSICAO | C115: 5932 | D115: MOTONIVELADORA POTÊNCIA BÁSICA LÍQUIDA (PRIMEIRA MARCHA) 125 HP, PESO BRUTO 13032 KG, LARGURA DA LÂMINA DE 3,7 M | E115: CHP | F115: 0,0001000 | G115: 262,71 | H115: 0.02
B116: COMPOSICAO | C116: 5934 | D116: MOTONIVELADORA POTÊNCIA BÁSICA LÍQUIDA (PRIMEIRA MARCHA) 125 HP, PESO BRUTO 13032 KG, LARGURA DA LÂMINA DE 3,7 M | E116: CHI | F116: 0,0080000 | G116: 109,40 | H116: 0.87
B117: COMPOSICAO | C117: 73436 | D117: ROLO COMPACTADOR VIBRATÓRIO PÉ DE CARNEIRO PARA SOLOS, POTÊNCIA 80 HP, PESO OPERACIONAL SEM/COM LASTRO 7,4 / 8,8 T, LARGURA DE TRABALHO 1,68 M | E117: CHP | F117: 0,0020000 | G117: 163,19 | H117: 0.32
B118: COMPOSICAO | C118: 88316 | D118: SERVENTE COM ENCARGOS COMPLEMENTARES | E118: H | F118: 0,0080000 | G118: 19,76 | H118: 0.15
B119: COMPOSICAO | C119: 93244 | D119: ROLO COMPACTADOR VIBRATÓRIO PÉ DE CARNEIRO PARA SOLOS, POTÊNCIA 80 HP, PESO OPERACIONAL SEM/COM LASTRO 7,4 / 8,8 T, LARGURA DE TRABALHO 1,68 M | E119: CHI | F119: 0,0060000 | G119: 71,18 | H119: 0.42
B121: PRODUÇÃO DA EQUIPE | E121: 1 | F121: CUSTO | H121: =SUM(H113:H120) -> 2.57
B122: TOTAL | H122: =H121/E121 -> 2.57 | I122: OK
B123: BDI % | H123: =1+$M$1 -> 1.2149
B124: TOTAL DO SERVIÇO - R$ | H124: =ROUND(H122*H123,2) -> 3.12
A126: 9 | B126: CODEVASF | E126: COMPOSIÇÃO DE PREÇO UNITÁRIO | I126: =H143 -> 104.95 | J126: =H145 -> 127.5
B127: OBRA: | C127: =$C$2 -> RECAPEAMENTO E PAVIMENTAÇÃO ASFÁLTICA EM CBUQ - VIAS URBANAS DIVERSAS (SERRA DA SAUDADE / MG) - ITEM 2 | G127: DATA: | H127: =$H$2 -> SETEMBRO / 2023
B128: SERVIÇO: | C128: =VLOOKUP(A126,ORÇAMENTO!$A$10:$I$30,3) -> EXECUÇÃO E COMPACTAÇÃO DE BASE E OU SUB BASE PARA PAVIMENTAÇÃO DE BICA CORRIDA - EXCLUSIVE CARGA E TRANSPORTE | E128: SINAPI | F128: =VLOOKUP(A126,ORÇAMENTO!$A$10:$I$30,4) -> 96396 | G128: UNIDADE: | H128: =VLOOKUP(A126,ORÇAMENTO!$A$10:$I$30,5) -> M3
B130: TIPO ITEM | C130: CODIGO ITEM | D130: DESCRIÇÃO ITEM | E130: UNIDADE ITEM | F130: COEFICIENTE | G130: PRECO UNITARIO | H130: CUSTO TOTAL
B131: COMPOSICAO | C131: 5684 | D131: ROLO COMPACTADOR VIBRATÓRIO DE UM CILINDRO AÇO LISO, POTÊNCIA 80 HP, PESO OPERACIONAL MÁXIMO 8,1 T, IMPACTO DINÂMICO 16,15 / 9,5 T, LARGURA DE TRABALHO 1,68 M | E131: CHP | F131: 0,0090000 | G131: 159,98 | H131: =ROUNDDOWN(F131*G131,2) -> 1.43
B132: COMPOSICAO | C132: 5685 | D132: ROLO COMPACTADOR VIBRATÓRIO DE UM CILINDRO AÇO LISO, POTÊNCIA 80 HP, PESO OPERACIONAL MÁXIMO 8,1 T, IMPACTO DINÂMICO 16,15 / 9,5 T, LARGURA DE TRABALHO 1,68 M | E132: CHI | F132: 0,0210000 | G132: 69,53 | H132: 1.46
B133: COMPOSICAO | C133: 5901 | D133: CAMINHÃO PIPA 10.000 L TRUCADO, PESO BRUTO TOTAL 23.000 KG, CARGA ÚTIL MÁXIMA 15.935 KG, DISTÂNCIA ENTRE EIXOS 4,8 M, POTÊNCIA 230 CV, INCLUSIVE TANQUE DE AÇO PARA TRANSPORTE DE ÁGUA | E133: CHP | F133: 0,0020000 | G133: 294,94 | H133: 0.58
B134: COMPOSICAO | C134: 5903 | D134: CAMINHÃO PIPA 10.000 L TRUCADO, PESO BRUTO TOTAL 23.000 KG, CARGA ÚTIL MÁXIMA 15.935 KG, DISTÂNCIA ENTRE EIXOS 4,8 M, POTÊNCIA 230 CV, INCLUSIVE TANQUE DE AÇO PARA TRANSPORTE DE ÁGUA | E134: CHI | F134: 0,0280000 | G134: 72,55 | H134: 2.03
B135: COMPOSICAO | C135: 5932 | D135: MOTONIVELADORA POTÊNCIA BÁSICA LÍQUIDA (PRIMEIRA MARCHA) 125 HP, PESO BRUTO 13032 KG, LARGURA DA LÂMINA DE 3,7 M | E135: CHP | F135: 0,0080000 | G135: 262,71 | H135: 2.1
B136: COMPOSICAO | C136: 5934 | D136: MOTONIVELADORA POTÊNCIA BÁSICA LÍQUIDA (PRIMEIRA MARCHA) 125 HP, PESO BRUTO 13032 KG, LARGURA DA LÂMINA DE 3,7 M | E136: CHI | F136: 0,0220000 | G136: 109,40 | H136: 2.4
B137: COMPOSICAO | C137: 88316 | D137: SERVENTE COM ENCARGOS COMPLEMENTARES | E137: H | F137: 0,0300000 | G137: 19,76 | H137: 0.59
B138: COMPOSICAO | C138: 4748 | D138: PEDRA BRITADA OU BICA CORRIDA, NÃO CLASSIFICADA (POSTO PEDREIRA/FORNECEDOR, SEM FRETE) | E138: M3 | F138: 1,0000000 | G138: =65*1.4 -> 91 | H138: 91
B139: COMPOSICAO | C139: 96463 | D139: ROLO COMPACTADOR DE PNEUS, ESTATICO, PRESSAO VARIAVEL, POTENCIA 110 HP, PESO SEM/COM LASTRO 10,8/27 T, LARGURA DE ROLAGEM 2,30 M | E139: CHP | F139: 0,0040000 | G139: 218,21 | H139: 0.87
B140: COMPOSICAO | C140: 96464 | D140: ROLO COMPACTADOR DE PNEUS, ESTATICO, PRESSAO VARIAVEL, POTENCIA 110 HP, PESO SEM/COM LASTRO 10,8/27 T, LARGURA DE ROLAGEM 2,30 M | E140: CHI | F140: 0,0260000 | G140: 95,83 | H140: 2.49
H141: 0
B142: PRODUÇÃO DA EQUIPE | E142: 1 | F142: CUSTO | H142: =SUM(H131:H141) -> 104.95
B143: TOTAL | H143: =H142/E142 -> 104.95 | I143: OK
B144: BDI % | H144: =1+$M$1 -> 1.2149
B145: TOTAL DO SERVIÇO - R$ | H145: =ROUND(H143*H144,2) -> 127.5
A147: 10 | B147: CODEVASF | E147: COMPOSIÇÃO DE PREÇO UNITÁRIO | I147: =H162 -> 1.23 | J147: =H164 -> 1.49
B148: OBRA: | C148: =$C$2 -> RECAPEAMENTO E PAVIMENTAÇÃO ASFÁLTICA EM CBUQ - VIAS URBANAS DIVERSAS (SERRA DA SAUDADE / MG) - ITEM 2 | G148: DATA: | H148: =$H$2 -> SETEMBRO / 2023
B149: SERVIÇO: | C149: =VLOOKUP(A147,ORÇAMENTO!$A$10:$I$30,3) -> IMPRIMAÇÃO COM EMULSÃO ASFÁLTICA (EAI) | E149: SINAPI | F149: =VLOOKUP(A147,ORÇAMENTO!$A$10:$I$30,4) -> 96401 | G149: UNIDADE: | H149: =VLOOKUP(A147,ORÇAMENTO!$A$10:$I$30,5) -> M2
B151: TIPO ITEM | C151: CODIGO ITEM | D151: DESCRIÇÃO ITEM | E151: UNIDADE ITEM | F151: COEFICIENTE | G151: PRECO UNITARIO | H151: CUSTO TOTAL
B152: COMPOSICAO | C152: 5839 | D152: VASSOURA MECÂNICA REBOCÁVEL COM ESCOVA CILÍNDRICA, LARGURA ÚTIL DE VARRIMENTO DE 2,44 M | E152: CHP | F152: 0,0020000 | G152: 10.3 | H152: =ROUNDDOWN(F152*G152,2) -> 0.02
B153: COMPOSICAO | C153: 5841 | D153: VASSOURA MECÂNICA REBOCÁVEL COM ESCOVA CILÍNDRICA, LARGURA ÚTIL DE VARRIMENTO DE 2,44 M | E153: CHI | F153: 0,0040000 | G153: 5.18 | H153: 0.02
B154: INSUMO | C154: ANP | D154: EMULSÃO ASFÁLTICA PARA IMPRIMAÇÃO - EAI (FORNECIMENTO COM BDI DIFERENCIADO) | E154: T | F154: =1.3/1000 -> 0.0013 | H154: 0
B155: COMPOSICAO | C155: 83362 | D155: ESPARGIDOR DE ASFALTO PRESSURIZADO, TANQUE 6 M3 COM ISOLAÇÃO TÉRMICA, AQUECIDO COM 2 MAÇARICOS, COM BARRA ESPARGIDORA 3,60 M, MONTADO SOBRE CAMINHÃO TOCO, PBT 14.300 KG, POTÊNCIA 185 CV | E155: CHP | F155: 0,0010000 | G155: 256.34 | H155: 0.25
B156: COMPOSICAO | C156: 88316 | D156: SERVENTE COM ENCARGOS COMPLEMENTARES | E156: H | F156: 0,0060000 | G156: 19.76 | H156: 0.11
B157: COMPOSICAO | C157: 89035 | D157: TRATOR DE PNEUS, POTÊNCIA 85 CV, TRAÇÃO 4X4, PESO COM LASTRO DE 4.675 KG | E157: CHP | F157: 0,0020000 | G157: 135.08 | H157: 0.27
B158: COMPOSICAO | C158: 89036 | D158: TRATOR DE PNEUS, POTÊNCIA 85 CV, TRAÇÃO 4X4, PESO COM LASTRO DE 4.675 KG | E158: CHI | F158: 0,0040000 | G158: 56.48 | H158: 0.22
B159: COMPOSICAO | C159: 91486 | D159: ESPARGIDOR DE ASFALTO PRESSURIZADO, TANQUE 6 M3 COM ISOLAÇÃO TÉRMICA, AQUECIDO COM 2 MAÇARICOS, COM BARRA ESPARGIDORA 3,60 M, MONTADO SOBRE CAMINHÃO TOCO, PBT 14.300 KG, POTÊNCIA 185 CV | E159: CHI | F159: 0,0050000 | G159: 68.43 | H159: 0.34
H160: 0
B161: PRODUÇÃO DA EQUIPE | E161: 1 | F161: CUSTO | H161: =SUM(H152:H160) -> 1.23
B162: TOTAL | H162: =H161/E161 -> 1.23 | I162: OK
B163: BDI % | H163: =1+$M$1 -> 1.2149
B164: TOTAL DO SERVIÇO - R$ | H164: =ROUND(H162*H163,2) -> 1.49
A166: 11 | B166: CODEVASF | E166: COMPOSIÇÃO DE PREÇO UNITÁRIO | I166: =H181 -> 1.01 | J166: =H183 -> 1.23
B167: OBRA: | C167: =$C$2 -> RECAPEAMENTO E PAVIMENTAÇÃO ASFÁLTICA EM CBUQ - VIAS URBANAS DIVERSAS (SERRA DA SAUDADE / MG) - ITEM 2 | G167: DATA: | H167: =$H$2 -> SETEMBRO / 2023
B168: SERVIÇO: | C168: =VLOOKUP(A166,ORÇAMENTO!$A$10:$I$30,3) -> PINTURA DE LIGAÇÃO COM EMULSÃO ASFÁLTICA RR-1C | E168: SINAPI | F168: =VLOOKUP(A166,ORÇAMENTO!$A$10:$I$30,4) -> 96402 | G168: UNIDADE: | H168: M2
B170: TIPO ITEM | C170: CODIGO ITEM | D170: DESCRIÇÃO ITEM | E170: UNIDADE ITEM | F170: COEFICIENTE | G170: PRECO UNITARIO | H170: CUSTO TOTAL
B171: COMPOSICAO | C171: 5839 | D171: VASSOURA MECÂNICA REBOCÁVEL COM ESCOVA CILÍNDRICA, LARGURA ÚTIL DE VARRIMENTO DE 2,44 M | E171: CHP | F171: 0,0020000 | G171: 10.3 | H171: =ROUNDDOWN(F171*G171,2) -> 0.02
B172: COMPOSICAO | C172: 5841 | D172: VASSOURA MECÂNICA REBOCÁVEL COM ESCOVA CILÍNDRICA, LARGURA ÚTIL DE VARRIMENTO DE 2,44 M | E172: CHI | F172: 0,0040000 | G172: 5.18 | H172: 0.02
B173: INSUMO | C173: 41903 | D173: EMULSAO ASFALTICA CATIONICA RR-1C PARA USO EM PAVIMENTACAO ASFALTICA (FORNECIMENTO COM BDI DIFERENCIADO) | E173: KG | F173: 0,4500000 | H173: 0
B174: COMPOSICAO | C174: 83362 | D174: ESPARGIDOR DE ASFALTO PRESSURIZADO, TANQUE 6 M3 COM ISOLAÇÃO TÉRMICA, AQUECIDO COM 2 MAÇARICOS, COM BARRA ESPARGIDORA 3,60 M, MONTADO SOBRE CAMINHÃO TOCO, PBT 14.300 KG, POTÊNCIA 185 CV | E174: CHP | F174: 0,0004000 | G174: 256.34 | H174: 0.1
B175: COMPOSICAO | C175: 88316 | D175: SERVENTE COM ENCARGOS COMPLEMENTARES | E175: H | F175: 0,0055000 | G175: 19.76 | H175: 0.1
B176: COMPOSICAO | C176: 89035 | D176: TRATOR DE PNEUS, POTÊNCIA 85 CV, TRAÇÃO 4X4, PESO COM LASTRO DE 4.675 KG | E176: CHP | F176: 0,0017000 | G176: 135.08 | H176: 0.22
B177: COMPOSICAO | C177: 89036 | D177: TRATOR DE PNEUS, POTÊNCIA 85 CV, TRAÇÃO 4X4, PESO COM LASTRO DE 4.675 KG | E177: CHI | F177: 0,0038000 | G177: 56.48 | H177: 0.21
B178: COMPOSICAO | C178: 91486 | D178: ESPARGIDOR DE ASFALTO PRESSURIZADO, TANQUE 6 M3 COM ISOLAÇÃO TÉRMICA, AQUECIDO COM 2 MAÇARICOS, COM BARRA ESPARGIDORA 3,60 M, MONTADO SOBRE CAMINHÃO TOCO, PBT 14.300 KG, POTÊNCIA 185 CV | E178: CHI | F178: 0,0051000 | G178: 68.43 | H178: 0.34
H179: 0
B180: PRODUÇÃO DA EQUIPE | E180: 1 | F180: CUSTO | H180: =SUM(H171:H179) -> 1.01
B181: TOTAL | H181: =H180/E180 -> 1.01 | I181: OK
B182: BDI % | H182: =1+$M$1 -> 1.2149
B183: TOTAL DO SERVIÇO - R$ | H183: =ROUND(H181*H182,2) -> 1.23
A185: 12 | B185: CODEVASF | E185: COMPOSIÇÃO DE PREÇO UNITÁRIO | I185: =H203 -> 129.6 | J185: =H205 -> 157.45
B186: OBRA: | C186: =$C$2 -> RECAPEAMENTO E PAVIMENTAÇÃO ASFÁLTICA EM CBUQ - VIAS URBANAS DIVERSAS (SERRA DA SAUDADE / MG) - ITEM 2 | G186: DATA: | H186: =$H$2 -> SETEMBRO / 2023
B187: SERVIÇO: | C187: =VLOOKUP(A185,ORÇAMENTO!$A$10:$I$30,3) -> EXECUÇÃO DE PAVIMENTO COM APLICAÇÃO DE CONCRETO ASFÁLTICO USINADO A QUENTE (CBUQ), CAMADA DE ROLAMENTO - EXCLUSIVE TRANSPORTE | E187: SINAPI | F187: =VLOOKUP(A185,ORÇAMENTO!$A$10:$I$30,4) -> 95995 | G187: UNIDADE: | H187: =VLOOKUP(A185,ORÇAMENTO!$A$10:$I$30,5) -> M3
B189: TIPO ITEM | C189: CODIGO ITEM | D189: DESCRIÇÃO ITEM | E189: UNIDADE ITEM | F189: COEFICIENTE | G189: PRECO UNITARIO | H189: CUSTO TOTAL
B190: INSUMO | C190: 1518 | D190: CONCRETO BETUMINOSO USINADO A QUENTE (CBUQ) PARA PAVIMENTACAO ASFALTICA, PADRAO DNIT, FAIXA C, COM CAP 50/70 - AQUISICAO POSTO USINA (FORNECIMENTO COM BDI DIFERENCIADO) | E190: T | F190: 2,5548000 | H190: =ROUNDDOWN(F190*G190,2) -> 0
B191: COMPOSICAO | C191: 5835 | D191: VIBROACABADORA DE ASFALTO SOBRE ESTEIRAS, LARGURA DE PAVIMENTAÇÃO 1,90 M A 5,30 M, POTÊNCIA 105 HP CAPACIDADE 450 T/H | E191: CHP | F191: 0,0464000 | G191: 396,75 | H191: 18.4
B192: COMPOSICAO | C192: 5837 | D192: VIBROACABADORA DE ASFALTO SOBRE ESTEIRAS, LARGURA DE PAVIMENTAÇÃO 1,90 M A 5,30 M, POTÊNCIA 105 HP CAPACIDADE 450 T/H | E192: CHI | F192: 0,0949000 | G192: 165,12 | H192: 15.66
B193: COMPOSICAO | C193: 88314 | D193: RASTELEIRO COM ENCARGOS COMPLEMENTARES | E193: H | F193: 1,1301000 | G193: 26,52 | H193: 29.97
B194: COMPOSICAO | C194: 91386 | D194: CAMINHÃO BASCULANTE 10 M3, TRUCADO CABINE SIMPLES, PESO BRUTO TOTAL 23.000 KG, CARGA ÚTIL MÁXIMA 15.935 KG, DISTÂNCIA ENTRE EIXOS 4,80 M, POTÊNCIA 230 CV INCLUSIVE CAÇAMBA METÁLICA | E194: CHP | F194: 0,0464000 | G194: 252,13 | H194: 11.69
B195: COMPOSICAO | C195: 95631 | D195: ROLO COMPACTADOR VIBRATORIO TANDEM, ACO LISO, POTENCIA 125 HP, PESO SEM/COM LASTRO 10,20/11,65 T, LARGURA DE TRABALHO 1,73 M | E195: CHP | F195: 0,0805000 | G195: 228,02 | H195: 18.35
B196: COMPOSICAO | C196: 95632 | D196: ROLO COMPACTADOR VIBRATORIO TANDEM, ACO LISO, POTENCIA 125 HP, PESO SEM/COM LASTRO 10,20/11,65 T, LARGURA DE TRABALHO 1,73 M | E196: CHI | F196: 0,0607000 | G196: 89,32 | H196: 5.42
B197: COMPOSICAO | C197: 96155 | D197: TRATOR DE PNEUS COM POTÊNCIA DE 85 CV, TRAÇÃO 4X4, COM VASSOURA MECÂNICA ACOPLADA | E197: CHI | F197: 0,1071000 | G197: 61,42 | H197: 6.57
B198: COMPOSICAO | C198: 96157 | D198: TRATOR DE PNEUS COM POTÊNCIA DE 85 CV, TRAÇÃO 4X4, COM VASSOURA MECÂNICA ACOPLADA | E198: CHP | F198: 0,0341000 | G198: 144,29 | H198: 4.92
B199: COMPOSICAO | C199: 96463 | D199: ROLO COMPACTADOR DE PNEUS, ESTATICO, PRESSAO VARIAVEL, POTENCIA 110 HP, PESO SEM/COM LASTRO 10,8/27 T, LARGURA DE ROLAGEM 2,30 M | E199: CHP | F199: 0,0419000 | G199: 218,21 | H199: 9.14
B200: COMPOSICAO | C200: 96464 | D200: ROLO COMPACTADOR DE PNEUS, ESTATICO, PRESSAO VARIAVEL, POTENCIA 110 HP, PESO SEM/COM LASTRO 10,8/27 T, LARGURA DE ROLAGEM 2,30 M | E200: CHI | F200: 0,0990000 | G200: 95,83 | H200: 9.48
H201: 0
B202: PRODUÇÃO DA EQUIPE | E202: 1 | F202: CUSTO | H202: =SUM(H190:H201) -> 129.6
B203: TOTAL | H203: =H202/E202 -> 129.6 | I203: OK
B204: BDI % | H204: =1+$M$1 -> 1.2149
B205: TOTAL DO SERVIÇO - R$ | H205: =ROUND(H203*H204,2) -> 157.45
A207: 13 | B207: CODEVASF | E207: COMPOSIÇÃO DE PREÇO UNITÁRIO | I207: =H216 -> 0.73 | J207: =H218 -> 0.89
B208: OBRA: | C208: =$C$2 -> RECAPEAMENTO E PAVIMENTAÇÃO ASFÁLTICA EM CBUQ - VIAS URBANAS DIVERSAS (SERRA DA SAUDADE / MG) - ITEM 2 | G208: DATA: | H208: =$H$2 -> SETEMBRO / 2023
B209: SERVIÇO: | C209: =VLOOKUP(A207,ORÇAMENTO!$A$10:$I$30,3) -> TRANSPORTE COM CAMINHÃO BASCULANTE, EM VIA URBANA PAVIMENTADA | E209: SINAPI | F209: =VLOOKUP(A207,ORÇAMENTO!$A$10:$I$30,4) -> 95427 | G209: UNIDADE: | H209: =VLOOKUP(A207,ORÇAMENTO!$A$10:$I$30,5) -> M3XKM
B211: TIPO ITEM | C211: CODIGO ITEM | D211: DESCRIÇÃO ITEM | E211: UNIDADE ITEM | F211: COEFICIENTE | G211: PRECO UNITARIO | H211: CUSTO TOTAL
B212: COMPOSICAO | C212: 89883 | D212: CAMINHÃO BASCULANTE 18 M3, COM CAVALO MECÂNICO DE CAPACIDADE MÁXIMA DE TRAÇÃO COMBINADO DE 45000 KG, POTÊNCIA 330 CV, INCLUSIVE SEMIREBOQUE COM CAÇAMBA METÁLICA | E212: CHP | F212: 0,0019000 | G212: 348.45 | H212: =ROUNDDOWN(F212*G212,2) -> 0.66
B213: COMPOSICAO | C213: 89884 | D213: CAMINHÃO BASCULANTE 18 M3, COM CAVALO MECÂNICO DE CAPACIDADE MÁXIMA DE TRAÇÃO COMBINADO DE 45000 KG, POTÊNCIA 330 CV, INCLUSIVE SEMIREBOQUE COM CAÇAMBA METÁLICA | E213: CHI | F213: 0,0008000 | G213: 93.65 | H213: =ROUNDDOWN(F213*G213,2) -> 0.07
H214: =ROUNDDOWN(F214*G214,2) -> 0
B215: PRODUÇÃO DA EQUIPE | E215: 1 | F215: CUSTO | H215: =SUM(H212:H214) -> 0.73
B216: TOTAL | H216: =H215/E215 -> 0.73 | I216: OK
B217: BDI % | H217: =1+$M$1 -> 1.2149
B218: TOTAL DO SERVIÇO - R$ | H218: =ROUND(H216*H217,2) -> 0.89
A220: 14 | B220: CODEVASF | E220: COMPOSIÇÃO DE PREÇO UNITÁRIO | I220: =H229 -> 1.03 | J220: =H231 -> 1.25
B221: OBRA: | C221: =$C$2 -> RECAPEAMENTO E PAVIMENTAÇÃO ASFÁLTICA EM CBUQ - VIAS URBANAS DIVERSAS (SERRA DA SAUDADE / MG) - ITEM 2 | G221: DATA: | H221: =$H$2 -> SETEMBRO / 2023
B222: SERVIÇO: | C222: =VLOOKUP(A220,ORÇAMENTO!$A$10:$I$30,3) -> TRANSPORTE COM CAMINHÃO CARROCERIA 9T, EM VIA URBANA PAVIMENTADA | E222: SINAPI | F222: =VLOOKUP(A220,ORÇAMENTO!$A$10:$I$30,4) -> 100947 | G222: UNIDADE: | H222: =VLOOKUP(A220,ORÇAMENTO!$A$10:$I$30,5) -> TXKM
B224: TIPO ITEM | C224: CODIGO ITEM | D224: DESCRIÇÃO ITEM | E224: UNIDADE ITEM | F224: COEFICIENTE | G224: PRECO UNITARIO | H224: CUSTO TOTAL
B225: COMPOSICAO | C225: 5824 | D225: CAMINHÃO TOCO, PBT 16.000 KG, CARGA ÚTIL MÁX. 10.685 KG, DIST. ENTRE EIXOS 4,8 M, POTÊNCIA 189 CV, INCLUSIVE CARROCERIA FIXA ABERTA DE MADEIRA P/ TRANSPORTE GERAL DE CARGA SECA, DIMEN. APROX. 2,5 X 7,00 X 0,50 M | E225: CHP | F225: 0.0039 | G225: 202.74 | H225: =ROUNDDOWN(F225*G225,2) -> 0.79
B226: COMPOSICAO | C226: 5826 | D226: CAMINHÃO TOCO, PBT 16.000 KG, CARGA ÚTIL MÁX. 10.685 KG, DIST. ENTRE EIXOS 4,8 M, POTÊNCIA 189 CV, INCLUSIVE CARROCERIA FIXA ABERTA DE MADEIRA P/ TRANSPORTE GERAL DE CARGA SECA, DIMEN. APROX. 2,5 X 7,00 X 0,50 M | E226: CHI | F226: 0,0040000 | G226: 60.95 | H226: =ROUNDDOWN(F226*G226,2) -> 0.24
H227: =ROUNDDOWN(F227*G227,2) -> 0
B228: PRODUÇÃO DA EQUIPE | E228: 1 | F228: CUSTO | H228: =SUM(H225:H227) -> 1.03
... 154 more rows

Sheet BDI SERV
B1: DETALHAMENTO DO BDI - SERVIÇOS
B4: Item | C4: Descrição dos Serviços | D4: % | E4: %
D5: PV | E5: CD
B7: 1 | C7: ADMINISTRAÇÃO CENTRAL | E7: 4.01
B8: 1.1 | C8: ESCRITÓRIO CENTRAL
B9: 1.2 | C9: VIAGENS
B10: 1.3 | C10: OUTROS
B12: 2 | C12: IMPOSTOS E TAXAS | D12: =SUM(D13:D16) -> 5.65 | E12: =SUM(E13:E16) -> 7.06
B13: 2.1 | C13: ISS (*) | D13: 2 | E13: =ROUND(D13*1.2515,2) -> 2.5
B14: 2.2 | C14: PIS | D14: 0.65 | E14: =ROUND(D14*1.2515,2) -> 0.81
B15: 2.3 | C15: Cofins | D15: 3 | E15: =ROUND(D15*1.2515,2) -> 3.75
B16: 2.4 | C16: CONTRIBUIÇÃO PREVIDENCIÁRIA SOBRE A RENDA BRUTA | D16: 0 | E16: =ROUND(D16*1.2515,2) -> 0
B18: 3 | C18: TAXA DE RISCO | E18: =SUM(E19:E22) -> 0.96
B19: 3.1 | C19: SEGURO | E19: 0.2
B20: 3.2 | C20: RISCO | E20: 0.56
B21: 3.3 | C21: GARANTIA | E21: 0.2
T22: =1/0.82 -> 1.219512195
B23: 4 | C23: DESPESAS FINANCEIRAS | E23: 1.11
B25: 5 | C25: LUCRO | E25: 8
C27: BDI - CALCULADO | E27: =ROUND((((1+(E7+E18)/100)*(1+E23/100)*(1+E25/100)/(1-D12/100)-1)*100),2) -> 21.49
A29: BDI = ((1+((AC+S+R+G)/100))x(1+DF/100)x(1+L/100)/(1-I/100)-1)*100
B31: BDI (CALCULADO): | D31: =ROUND((((1+((E7+E18)/100))*(1+E23/100)*(1+E25/100))/(1-D12/100)-1)*100,2) -> 21.49 | E31: %
A33: (*) ISS CONFORME LEI MUNICIPAL COMPLEMENTAR Nº 002/2017 - ART. 77
A37: BDI EM CONFORMIDADE COM OS ACÓRDÃOS Nº 2369/2011 e ACÓRDÃO Nº 2.622/2013 - TCU - PLENÁRIO

Sheet BDI FORN
B1: DETALHAMENTO DO BDI - FORNECIMENTO (MATERIAL ASFÁLTICO)
B4: Item | C4: Descrição dos Serviços | D4: % | E4: %
D5: PV | E5: CD
B7: 1 | C7: ADMINISTRAÇÃO CENTRAL | E7: 3.72
B8: 1.1 | C8: ESCRITÓRIO CENTRAL
B9: 1.2 | C9: VIAGENS
B10: 1.3 | C10: OUTROS
B12: 2 | C12: IMPOSTOS E TAXAS | D12: =SUM(D13:D16) -> 3.65 | E12: =SUM(E13:E16) -> 4.56
B13: 2.1 | C13: ISS (*) | E13: =ROUND(D13*1.2515,2) -> 0
B14: 2.2 | C14: PIS | D14: 0.65 | E14: =ROUND(D14*1.2515,2) -> 0.81
B15: 2.3 | C15: Cofins | D15: 3 | E15: =ROUND(D15*1.2515,2) -> 3.75
B16: 2.4 | C16: CONTRIBUIÇÃO PREVIDENCIÁRIA SOBRE A RENDA BRUTA | D16: 0 | E16: =ROUND(D16*1.2515,2) -> 0
B18: 3 | C18: TAXA DE RISCO | E18: =SUM(E19:E22) -> 0.82
B19: 3.1 | C19: SEGURO | E19: 0.16
B20: 3.2 | C20: RISCO | E20: 0.5
B21: 3.3 | C21: GARANTIA | E21: 0.16
B23: 4 | C23: DESPESAS FINANCEIRAS | E23: 0.94
B25: 5 | C25: LUCRO | E25: 5
C27: BDI - CALCULADO | E27: =ROUND((((1+(E7+E18)/100)*(1+E23/100)*(1+E25/100)/(1-D12/100)-1)*100),2) -> 15
A29: BDI = ((1+((AC+S+R+G)/100))x(1+DF/100)x(1+L/100)/(1-I/100)-1)*100
B31: BDI (CALCULADO): | D31: =ROUND((((1+((E7+E18)/100))*(1+E23/100)*(1+E25/100))/(1-D12/100)-1)*100,2) -> 15 | E31: %
A37: BDI EM CONFORMIDADE COM OS ACÓRDÃOS Nº 2369/2011 e ACÓRDÃO Nº 2.622/2013 - TCU - PLENÁRIO

Sheet CRONOGRAMA
B1: CRONOGRAMA FÍSICO-FINANCEIRO
B2: OBRA: | C2: =ORÇAMENTO!C5 -> RECAPEAMENTO E PAVIMENTAÇÃO ASFÁLTICA EM CBUQ - VIAS URBANAS DIVERSAS (SERRA DA SAUDADE / MG) - ITEM 2 | F2: VALOR: | G2: =ORÇAMENTO!I41 -> 2438342.82
F3: PRAZO: | G3: 180 DIAS
B5: ITEM | C5: ETAPAS/DESCRIÇAO | D5: FISICO/ FINANCEIRO | E5: TOTAL ETAPAS | F5: MÊS 1 | G5: MÊS 2 | H5: MÊS 3 | I5: MÊS 4 | J5: MÊS 5 | K5: MÊS 6 | L5: TOTAL
A6: A | B6: =VLOOKUP(A6,ORÇAMENTO!$A$9:$I$41,2) -> 1 | C6: =VLOOKUP(A6,ORÇAMENTO!$A$9:$I$41,3) -> SERVIÇOS PRELIMINARES | D6: FISICO | E6: =ROUND(E7/$G$2,4) -> 0.0908 | F6: 0.1 | G6: 0.2 | H6: 0.2 | I6: 0.2 | J6: 0.2 | K6: 0.1 | L6: =SUM(F6:K6) -> 1
D7: FINANCEIRO | E7: =ORÇAMENTO!I9 -> 221440.67 | F7: =ROUND($E$7*F6,2) -> 22144.07 | G7: =ROUND($E$7*G6,2) -> 44288.13 | H7: =ROUND($E$7*H6,2) -> 44288.13 | I7: =ROUND($E$7*I6,2) -> 44288.13 | J7: 44288.13 | K7: 22144.07 | L7: =SUM(F7:K7) -> 221440.66
A8: B | B8: =VLOOKUP(A8,ORÇAMENTO!$A$9:$I$41,2) -> 2 | C8: =VLOOKUP(A8,ORÇAMENTO!$A$9:$I$41,3) -> PAVIMENTAÇÃO | D8: FISICO | E8: =ROUND(E9/$G$2,4) -> 0.1879 | F8: 0.1 | G8: 0.2 | H8: 0.2 | I8: 0.2 | J8: 0.2 | K8: 0.1 | L8: =SUM(F8:K8) -> 1
D9: FINANCEIRO | E9: =ORÇAMENTO!I15 -> 458046.5 | F9: =ROUND($E$9*F8,2) -> 45804.65 | G9: =ROUND($E$9*G8,2) -> 91609.3 | H9: =ROUND($E$9*H8,2) -> 91609.3 | I9: =ROUND($E$9*I8,2) -> 91609.3 | J9: 91609.3 | K9: 45804.65 | L9: =SUM(F9:K9) -> 458046.5
A10: C | B10: =VLOOKUP(A10,ORÇAMENTO!$A$9:$I$41,2) -> 3 | C10: =VLOOKUP(A10,ORÇAMENTO!$A$9:$I$41,3) -> TRANSPORTE DE MATERIAIS | D10: FISICO | E10: =ROUND(E11/$G$2,4) -> 0.0985 | F10: 0.25 | G10: 0.25 | H10: 0.25 | I10: 0.25 | J10: 0 | K10: 0 | L10: =SUM(F10:K10) -> 1
D11: FINANCEIRO | E11: =ORÇAMENTO!I23 -> 240150 | F11: =ROUND($E$11*F10,2) -> 60037.5 | G11: =ROUND($E$11*G10,2) -> 60037.5 | H11: =ROUND($E$11*H10,2) -> 60037.5 | I11: =ROUND($E$11*I10,2) -> 60037.5 | J11: 0 | K11: 0 | L11: =SUM(F11:K11)-0.04 -> 240149.96
A12: D | B12: =VLOOKUP(A12,ORÇAMENTO!$A$9:$I$41,2) -> 4 | C12: =VLOOKUP(A12,ORÇAMENTO!$A$9:$I$41,3) -> TRANSPORTE DE MATERIAL ASFÁLTICO (BDI DIFERENCIADO) | D12: FISICO | E12: =ROUND(E13/$G$2,4) -> 0.0336 | F12: 0 | G12: 0.2 | H12: 0.2 | I12: 0.2 | J12: 0.2 | K12: 0.2 | L12: =SUM(F12:K12) -> 1
D13: FINANCEIRO | E13: =ORÇAMENTO!I26 -> 82048.07 | F13: =ROUND($E$13*F12,2) -> 0 | G13: =ROUND($E$13*G12,2) -> 16409.61 | H13: =ROUND($E$13*H12,2) -> 16409.61 | I13: =ROUND($E$13*I12,2) -> 16409.61 | J13: 16409.61 | K13: 16409.61 | L13: =SUM(F13:K13)-0.02 -> 82048.03
A14: E | B14: =VLOOKUP(A14,ORÇAMENTO!$A$9:$I$41,2) -> 5 | C14: =VLOOKUP(A14,ORÇAMENTO!$A$9:$I$41,3) -> DRENAGEM E OBRAS COMPLEMENTARES | D14: FISICO | E14: =ROUND(E15/$G$2,4) -> 0.1869 | F14: 0 | G14: 0 | H14: 0.25 | I14: 0.25 | J14: 0.25 | K14: 0.25 | L14: =SUM(F14:K14) -> 1
D15: FINANCEIRO | E15: =ORÇAMENTO!I29 -> 455644.76 | F15: =ROUND($E$15*F14,2) -> 0 | G15: =ROUND($E$15*G14,2) -> 0 | H15: =ROUND($E$15*H14,2) -> 113911.19 | I15: =ROUND($E$15*I14,2) -> 113911.19 | J15: 113911.19 | K15: 113911.19 | L15: =SUM(F15:K15)-0.02 -> 455644.74
A16: F | B16: =VLOOKUP(A16,ORÇAMENTO!$A$9:$I$41,2) -> 6 | C16: =VLOOKUP(A16,ORÇAMENTO!$A$9:$I$41,3) -> FORNECIMENTOS - MATERIAL ASFÁLTICO (BDI DIFERENCIADO) | D16: FISICO | E16: =ROUND(E17/$G$2,4) -> 0.4023 | F16: 0 | G16: 0.2 | H16: 0.2 | I16: 0.2 | J16: 0.2 | K16: 0.2 | L16: =SUM(F16:K16) -> 1
D17: FINANCEIRO | E17: =ORÇAMENTO!I37 -> 981012.82 | F17: =ROUND($E$17*F16,2) -> 0 | G17: =ROUND($E$17*G16,2) -> 196202.56 | H17: =ROUND($E$17*H16,2) -> 196202.56 | I17: =ROUND($E$17*I16,2) -> 196202.56 | J17: 196202.56 | K17: 196202.56 | L17: =SUM(F17:K17)-0.02 -> 981012.78
B18: TOTAL | D18: FISICO | E18: =SUM(F18:K18) -> 0.9999999795 | F18: =F19/$E$19 -> 0.05248901793 | G18: =G19/$E$19 -> 0.1675511321 | H18: =H19/$E$19 -> 0.2142677747 | I18: =I19/$E$19 -> 0.2142677747 | J18: 0.1896455192 | K18: 0.1617787609 | L18: =SUM(F18:K18) -> 0.9999999795
D19: FINANCEIRO | E19: =E11+E9+E7+E13+E17+E15 -> 2438342.82 | F19: =F11+F9+F7+F13+F17+F15 -> 127986.22 | G19: =G11+G9+G7+G13+G17+G15 -> 408547.1 | H19: =H11+H9+H7+H13+H17+H15 -> 522458.29 | I19: =I11+I9+I7+I13+I17+I15 -> 522458.29 | J19: 462420.79 | K19: 394472.08 | L19: =SUM(F19:K19)+0.05 -> 2438342.82
B21: OBSERVAÇÕES:

Sheet CALC.MAT
A1: 1 | B1: CODEVASF | E1: COMPOSIÇÃO DE PREÇO UNITÁRIO | I1: MATERIAIS | J1: =SUMIF(K$6:K$344,"M",J$6:J$344) -> 202532.12 | K1: =J1*(1+O$1) -> 246056.2726 | L1: =K1/K$5 -> 0.2458797397 | M1: BDI CALCULADO: | O1: =ORÇAMENTO!I6 -> 0.2149
A2: =A1 -> 1 | B2: OBRA: | C2: PAVIMENTAÇÃO ASFÁLTICA EM CBUQ - ESTRADA DE ACESSO AOS TÚNIES (SERRA DA SAUDADE / MG) - ITEM 2 | G2: DATA: | H2: SETEMBRO / 2023 | I2: MAO DE OBRA | J2: =SUMIF(K$6:K$344,"P",J$6:J$344) -> 175738.9787 | K2: =J2*(1+O$1) -> 213505.2852 | L2: =K2/K$5 -> 0.213352106 | M2: BDI DIFERENCIADO: | O2: ='BDI FORN'!D31/100 -> 0.15
A3: =A2 -> 1 | B3: SERVIÇO: | C3: MOBILIZAÇÃO E DESMOBILIZAÇÃO | E3: Referência: | F3: CPU.1 | G3: UNIDADE: | H3: GL | I3: EQUIPAMENTOS | J3: =SUMIF(K$6:K$344,"E",J$6:J$344) -> 445432.8806 | K3: =J3*(1+O$1) -> 541156.4066 | L3: 0.5407681543
A4: 1
A5: 1 | B5: TIPO ITEM | C5: CODIGO ITEM | D5: DESCRIÇÃO ITEM | E5: UNIDADE ITEM | F5: COEFICIENTE | G5: PRECO UNITARIO | H5: CUSTO TOTAL | I5: VALOR SERVIÇO: | J5: =ORÇAMENTO!I9+ORÇAMENTO!I15+ORÇAMENTO!I23+ORÇAMENTO!I29 -> 1375281.93 | K5: =SUM(K1:K3) -> 1000717.964
A6: 1 | B6: COMPOSICAO | C6: 89876 | D6: CAMINHÃO BASCULANTE 14 M3, COM CAVALO MECÂNICO DE CAPACIDADE MÁXIMA DE TRAÇÃO COMBINADO DE 36000 KG, POTÊNCIA 286 CV, INCLUSIVE SEMIREBOQUE COM CAÇAMBA METÁLICA | E6: CHP DIURNO. | F6: 8 | G6: 316.13 | H6: 2529.04 | I6: =VLOOKUP(A6,ORÇAMENTO!A$10:F$40,6)/E$10 -> 2 | J6: =H6*I6 -> 5058.08 | K6: E
A7: 1 | B7: COMPOSICAO | C7: 89877 | D7: CAMINHÃO BASCULANTE 14 M3, COM CAVALO MECÂNICO DE CAPACIDADE MÁXIMA DE TRAÇÃO COMBINADO DE 36000 KG, POTÊNCIA 286 CV, INCLUSIVE SEMIREBOQUE COM CAÇAMBA METÁLICA | E7: CHI DIURNO. | F7: 8 | G7: 89.75 | H7: 718 | I7: =VLOOKUP(A7,ORÇAMENTO!A$10:F$40,6)/E$10 -> 2 | J7: =H7*I7 -> 1436 | K7: E
A8: 1 | B8: COMPOSICAO | C8: 5914640 | D8: TRANSPORTE COM CAVALO MECÂNICO COM SEMIRREBOQUE COM CAPACIDADE DE 30 T - RODOVIA PAVIMENTADA | E8: T.KM | F8: 5805 | G8: 0.58 | H8: 3366.9 | I8: =VLOOKUP(A8,ORÇAMENTO!A$10:F$40,6)/E$10 -> 2 | J8: 6733.8 | K8: E
A9: 1 | B9: COMPOSIÇÃO | C9: 88316 | D9: SERVENTE COM ENCARGOS COMPLEMENTARES | E9: H | F9: 16 | G9: 19.76 | H9: 316.16 | I9: =VLOOKUP(A9,ORÇAMENTO!A$10:F$40,6)/E$10 -> 2 | J9: =H9*I9 -> 632.32 | K9: P
A10: 1 | B10: PRODUÇÃO DA EQUIPE | E10: 0.5 | F10: CUSTO | H10: 6930.1
A11: 1 | B11: TOTAL | H11: 13860.2
A12: 1 | B12: BDI % | H12: 1.2149
A13: 1 | B13: TOTAL DO SERVIÇO - R$ | H13: 16838.76
A14: 1
A15: =A1+1 -> 2 | B15: CODEVASF | E15: COMPOSIÇÃO DE PREÇO UNITÁRIO
A16: =A15 -> 2 | B16: OBRA: | C16: PAVIMENTAÇÃO ASFÁLTICA EM CBUQ - ESTRADA DE ACESSO AOS TÚNIES (SERRA DA SAUDADE / MG) - ITEM 2 | G16: DATA: | H16: SETEMBRO / 2023
A17: 2 | B17: SERVIÇO: | C17: ADMINISTRAÇÃO LOCAL | E17: SINAPI | F17: CPU.2 | G17: UNIDADE: | H17: GL
A18: 2
A19: 2 | B19: TIPO ITEM | C19: CODIGO ITEM | D19: DESCRIÇÃO ITEM | E19: UNIDADE ITEM | F19: COEFICIENTE | G19: PRECO UNITARIO | H19: CUSTO TOTAL
A20: 2 | B20: INSUMO | C20: 14250 | D20: ENERGIA ELÉTRICA | E20: kwh | F20: 60 | G20: 0.94 | H20: 56.4 | I20: =VLOOKUP(A20,ORÇAMENTO!A$10:F$40,6)/E$28 -> 3.000003 | J20: 169.2001692 | K20: E
A21: 2 | B21: INSUMO | C21: 44480 | D21: TARIFA "A" - ÁGUA/ESGOTO | E21: m³ | F21: 6 | G21: 17.78 | H21: 106.68 | I21: =VLOOKUP(A21,ORÇAMENTO!A$10:F$40,6)/E$28 -> 3.000003 | J21: 320.04032 | K21: E
A22: 2 | B22: COTAÇÃO | C22: MERC. | D22: TELEFONE (PLANO CONTROLE) | E22: UNID | F22: 2 | G22: 59.9 | H22: 119.8 | I22: =VLOOKUP(A22,ORÇAMENTO!A$10:F$40,6)/E$28 -> 3.000003 | J22: 359.4003594 | K22: E
A23: 2 | B23: INSUMO | C23: ED-50155 SEINFRA | D23: BANHEIRO QUÍMICO 110 X 120 X 230 CM COM MANUTENÇÃO (CONSIDERANDO OBRAS SIMULTÂNEAS) | E23: MÊS | F23: 2 | G23: 820 | H23: 1640 | I23: =VLOOKUP(A23,ORÇAMENTO!A$10:F$40,6)/E$28 -> 3.000003 | J23: 4920.00492 | K23: E
A24: 2 | B24: COMPOSICAO | C24: 90777 | D24: Engenheiro Civil Júnior com encargos complementares | E24: H | F24: 55 | G24: 114.12 | H24: 6276.6 | I24: =VLOOKUP(A24,ORÇAMENTO!A$10:F$40,6)/E$28 -> 3.000003 | J24: 18829.81883 | K24: P
A25: 2 | B25: COMPOSICAO | C25: 90776 | D25: Encarregado Geral com encargos complementares | E25: H | F25: 110 | G25: 57.73 | H25: 6350.3 | I25: =VLOOKUP(A25,ORÇAMENTO!A$10:F$40,6)/E$28 -> 3.000003 | J25: 19050.91905 | K25: P
A26: 2 | B26: COMPOSICAO | C26: 88321 | D26: Tecnico de Laboratório com encargos complementares | E26: H | F26: 55 | G26: 45.45 | H26: 2499.75 | I26: =VLOOKUP(A26,ORÇAMENTO!A$10:F$40,6)/E$28 -> 3.000003 | J26: 7499.257499 | K26: P
A27: 2 | B27: COMPOSICAO | C27: 90772 | D27: Auxiliar de escritório com encargos complementares | E27: H | F27: 55 | G27: 23.72 | H27: 1304.6 | I27: =VLOOKUP(A27,ORÇAMENTO!A$10:F$40,6)/E$28 -> 3.000003 | J27: 3913.803914 | K27: P
A28: 2 | B28: PRODUÇÃO DA EQUIPE | E28: 0.333333 | F28: CUSTO | H28: 18354.13
A29: 2 | B29: TOTAL | H29: 55062.45
A30: 2 | B30: BDI % | H30: 1.2149
A31: 2 | B31: TOTAL DO SERVIÇO - R$ | H31: 66895.37
A32: 2
A33: =A15+1 -> 3 | B33: CODEVASF | E33: COMPOSIÇÃO DE PREÇO UNITÁRIO
A34: =A33 -> 3 | B34: OBRA: | C34: PAVIMENTAÇÃO ASFÁLTICA EM CBUQ - ESTRADA DE ACESSO AOS TÚNIES (SERRA DA SAUDADE / MG) - ITEM 2 | G34: DATA: | H34: SETEMBRO / 2023
A35: 3 | B35: SERVIÇO: | C35: CANTEIRO DE OBRAS | E35: SINAPI | F35: CPU.3 | G35: UNIDADE: | H35: GL
A36: 3
A37: 3 | B37: TIPO ITEM | C37: CODIGO ITEM | D37: DESCRIÇÃO ITEM | E37: UNIDADE ITEM | F37: COEFICIENTE | G37: PRECO UNITARIO | H37: CUSTO TOTAL
A38: 3 | B38: INSUMO | C38: 10775 | D38: LOCACAO DE CONTAINER 2,30 X 6,00 M, ALT. 2,50 M, COM 1 SANITARIO, PARA ESCRITORIO, COMPLETO, SEM DIVISORIAS INTERNAS | E38: MÊS | F38: 3 | G38: 975 | H38: 2925 | I38: =VLOOKUP(A38,ORÇAMENTO!A$10:F$40,6) -> 1 | J38: =H38*I38 -> 2925 | K38: E
A39: 3 | B39: INSUMO | C39: 10779 | D39: LOCACAO DE CONTAINER 2,30 X 4,30 M, ALT. 2,50 M, P/ SANITARIO, C/ 5 BACIAS, 1 LAVATORIO E 4 MICTORIOS | E39: MÊS | F39: 3 | G39: 1218.75 | H39: 3656.25 | I39: =VLOOKUP(A39,ORÇAMENTO!A$10:F$40,6) -> 1 | J39: 3656.25 | K39: E
A40: 3 | B40: INSUMO | C40: 37525 | D40: TELA PLASTICA TECIDA LISTRADA BRANCA E LARANJA, TIPO GUARDA CORPO, EM POLIETILENO MONOFILADO, ROLO 1,20 X 50 M (L X C) | E40: M | F40: 100 | G40: 3.69 | H40: 369 | I40: =VLOOKUP(A40,ORÇAMENTO!A$10:F$40,6) -> 1 | J40: 369 | K40: M
A41: 3 | H41: 0 | I41: =VLOOKUP(A41,ORÇAMENTO!A$10:F$40,6) -> 1 | J41: 0 | K41: E
A42: 3 | B42: PRODUÇÃO DA EQUIPE | E42: 1 | F42: CUSTO | H42: 6950.25
A43: 3 | B43: TOTAL | H43: 6950.25
A44: 3 | B44: BDI % | H44: 1.2149
A45: 3 | B45: TOTAL DO SERVIÇO - R$ | H45: 8443.86
A46: 3
A47: =A33+1 -> 4 | B47: CODEVASF | E47: COMPOSIÇÃO DE PREÇO UNITÁRIO
A48: =A47 -> 4 | B48: OBRA: | C48: PAVIMENTAÇÃO ASFÁLTICA EM CBUQ - ESTRADA DE ACESSO AOS TÚNIES (SERRA DA SAUDADE / MG) - ITEM 2 | G48: DATA: | H48: SETEMBRO / 2023
A49: 4 | B49: SERVIÇO: | C49: PLACA DE OBRA EM CHAPA DE AÇO GALVANIZADO | E49: SINAPI | F49: 103689 | G49: UNIDADE: | H49: M2
A50: 4
A51: 4 | B51: TIPO ITEM | C51: CODIGO ITEM | D51: DESCRIÇÃO ITEM | E51: UNIDADE ITEM | F51: COEFICIENTE | G51: PRECO UNITARIO | H51: CUSTO TOTAL
A52: 4 | B52: INSUMO | C52: 4509 | D52: SARRAFO *2,5 X 10* CM EM PINUS, MISTA OU EQUIVALENTE DA REGIAO - BRUTA | E52: M | F52: 3,2083000 | G52: 4,41 | H52: 14.14 | I52: =VLOOKUP(A52,ORÇAMENTO!A$10:F$40,6) -> 6 | J52: =H52*I52 -> 84.84 | K52: M
A53: 4 | B53: INSUMO | C53: 4813 | D53: PLACA DE OBRA (PARA CONSTRUCAO CIVIL) EM CHAPA GALVANIZADA *N. 22*, ADESIVADA, DE *2,4 X 1,2* M (SEM POSTES PARA FIXACAO) | E53: M2 | F53: 1,0000000 | G53: 250,00 | H53: 250 | I53: =VLOOKUP(A53,ORÇAMENTO!A$10:F$40,6) -> 6 | J53: 1500 | K53: M
A54: 4 | B54: INSUMO | C54: 5065 | D54: PREGO DE ACO POLIDO COM CABECA 10 X 10 (7/8 X 17) | E54: KG | F54: 0,0113000 | G54: 36,57 | H54: 0.41 | I54: =VLOOKUP(A54,ORÇAMENTO!A$10:F$40,6) -> 6 | J54: 2.46 | K54: M
A55: 4 | B55: INSUMO | C55: 5069 | D55: PREGO DE ACO POLIDO COM CABECA 17 X 27 (2 1/2 X 11) | E55: KG | F55: 0,0132000 | G55: 19,59 | H55: 0.25 | I55: =VLOOKUP(A55,ORÇAMENTO!A$10:F$40,6) -> 6 | J55: 1.5 | K55: M
A56: 4 | B56: COMPOSICAO | C56: 88262 | D56: CARPINTEIRO DE FORMAS COM ENCARGOS COMPLEMENTARES | E56: H | F56: 0,3729000 | G56: 27,05 | H56: 10.08 | I56: =VLOOKUP(A56,ORÇAMENTO!A$10:F$40,6) -> 6 | J56: 60.48 | K56: P
A57: 4 | B57: COMPOSICAO | C57: 88316 | D57: SERVENTE COM ENCARGOS COMPLEMENTARES | E57: H | F57: 1,1186000 | G57: 19,76 | H57: 22.1 | I57: =VLOOKUP(A57,ORÇAMENTO!A$10:F$40,6) -> 6 | J57: 132.6 | K57: P
A58: 4 | B58: INSUMO | C58: 4115 | D58: MADEIRA ROLICA TRATADA, D = 12 A 15 CM, H = 3,00 M, EM EUCALIPTO OU EQUIVALENTE | E58: M | F58: 2 | G58: 21.76 | H58: 43.52 | I58: =VLOOKUP(A58,ORÇAMENTO!A$10:F$40,6) -> 6 | J58: 261.12 | K58: M
A59: 4 | H59: 0 | I59: =VLOOKUP(A59,ORÇAMENTO!A$10:F$40,6) -> 6 | J59: 0 | K59: E
A60: 4 | B60: PRODUÇÃO DA EQUIPE | E60: 1 | F60: CUSTO | H60: 340.5
A61: 4 | B61: TOTAL | H61: 340.5
A62: 4 | B62: BDI % | H62: 1.2149
A63: 4 | B63: TOTAL DO SERVIÇO - R$ | H63: 413.67
A64: 4
A65: =A47+1 -> 5 | B65: CODEVASF | E65: COMPOSIÇÃO DE PREÇO UNITÁRIO
A66: =A65 -> 5 | B66: OBRA: | C66: PAVIMENTAÇÃO ASFÁLTICA EM CBUQ - ESTRADA DE ACESSO AOS TÚNIES (SERRA DA SAUDADE / MG) - ITEM 2 | G66: DATA: | H66: SETEMBRO / 2023
A67: 5 | B67: SERVIÇO: | C67: SERVIÇOS TOPOGRÁFICOS PARA PAVIMENTAÇÃO, INCLUSIVE NOTA DE SERVIÇO, ACOMPANHAMENTO E GREIDE | E67: SINAPI | F67: 78472 | G67: UNIDADE: | H67: M2
A68: 5
A69: 5 | B69: TIPO ITEM | C69: CODIGO ITEM | D69: DESCRIÇÃO ITEM | E69: UNIDADE ITEM | F69: COEFICIENTE | G69: PRECO UNITARIO | H69: CUSTO TOTAL
A70: 5 | B70: COMPOSICAO | C70: 88253 | D70: AUXILIAR DE TOPÓGRAFO COM ENCARGOS COMPLEMENTARES | E70: H | F70: 0.0025 | G70: 21.57 | H70: 0.05 | I70: =VLOOKUP(A70,ORÇAMENTO!A$10:F$40,6) -> 13999.998 | J70: 699.9999 | K70: P
A71: 5 | B71: COMPOSICAO | C71: 88288 | D71: NIVELADOR COM ENCARGOS COMPLEMENTARES | E71: H | F71: 0.0025 | G71: 26.99 | H71: 0.06 | I71: =VLOOKUP(A71,ORÇAMENTO!A$10:F$40,6) -> 13999.998 | J71: =H71*I71 -> 839.99988 | K71: P
A72: 5 | B72: COMPOSICAO | C72: 88316 | D72: SERVENTE COM ENCARGOS COMPLEMENTARES | E72: H | F72: 0.0075 | G72: 19.76 | H72: 0.14 | I72: =VLOOKUP(A72,ORÇAMENTO!A$10:F$40,6) -> 13999.998 | J72: 1959.99972 | K72: P
A73: 5 | B73: COMPOSICAO | C73: 88597 | D73: DESENHISTA DETALHISTA COM ENCARGOS COMPLEMENTARES | E73: H | F73: 0.002 | G73: 29.72 | H73: 0.05 | I73: =VLOOKUP(A73,ORÇAMENTO!A$10:F$40,6) -> 13999.998 | J73: 699.9999 | K73: P
A74: 5 | B74: COMPOSICAO | C74: 92145 | D74: CAMINHONETE CABINE SIMPLES COM MOTOR 1.6 FLEX, CÂMBIO MANUAL, POTÊNCIA 101/104 CV, 2 PORTAS | E74: CHP | F74: 0.0005 | G74: 74.75 | H74: 0.03 | I74: =VLOOKUP(A74,ORÇAMENTO!A$10:F$40,6) -> 13999.998 | J74: 419.99994 | K74: E
A75: 5 | H75: 0 | I75: =VLOOKUP(A75,ORÇAMENTO!A$10:F$40,6) -> 13999.998 | J75: 0 | K75: E
A76: 5 | B76: PRODUÇÃO DA EQUIPE | E76: 1 | F76: CUSTO | H76: 0.33
A77: 5 | B77: TOTAL | H77: 0.33
A78: 5 | B78: BDI % | H78: 1.2149
A79: 5 | B79: TOTAL DO SERVIÇO - R$ | H79: 0.4
A80: 5
A81: =A65+1 -> 6 | B81: CODEVASF | E81: COMPOSIÇÃO DE PREÇO UNITÁRIO
A82: =A81 -> 6 | B82: OBRA: | C82: PAVIMENTAÇÃO ASFÁLTICA EM CBUQ - ESTRADA DE ACESSO AOS TÚNIES (SERRA DA SAUDADE / MG) - ITEM 2 | G82: DATA: | H82: SETEMBRO / 2023
A83: 6 | B83: SERVIÇO: | C83: ESCAVAÇÃO HORIZONTAL EM SOLO DE 1A CATEGORIA | E83: SINAPI | F83: 101116 | G83: UNIDADE: | H83: M3
A84: 6
A85: 6 | B85: TIPO ITEM | C85: CODIGO ITEM | D85: DESCRIÇÃO ITEM | E85: UNIDADE ITEM | F85: COEFICIENTE | G85: PRECO UNITARIO | H85: CUSTO TOTAL
A86: 6 | B86: COMPOSICAO | C86: 5847 | D86: TRATOR DE ESTEIRAS, POTÊNCIA 170 HP, PESO OPERACIONAL 19 T, CAÇAMBA 5,2 M3 | E86: CHP | F86: 0,0048000 | G86: 253,93 | H86: 1.21 | I86: =VLOOKUP(A86,ORÇAMENTO!A$10:F$40,6) -> 2800 | J86: 3388 | K86: E
A87: 6 | B87: COMPOSICAO | C87: 5849 | D87: TRATOR DE ESTEIRAS, POTÊNCIA 170 HP, PESO OPERACIONAL 19 T, CAÇAMBA 5,2 M3 | E87: CHI | F87: 0,0082000 | G87: 90,40 | H87: 0.74 | I87: =VLOOKUP(A87,ORÇAMENTO!A$10:F$40,6) -> 2800 | J87: 2072 | K87: E
A88: 6 | B88: COMPOSICAO | C88: 88316 | D88: SERVENTE COM ENCARGOS COMPLEMENTARES | E88: H | F88: 0,0131000 | G88: 19,76 | H88: 0.25 | I88: =VLOOKUP(A88,ORÇAMENTO!A$10:F$40,6) -> 2800 | J88: 700 | K88: P
A89: 6 | B89: PRODUÇÃO DA EQUIPE | E89: 1 | F89: CUSTO | H89: 2.2
A90: 6 | B90: TOTAL | H90: 2.2
A91: 6 | B91: BDI % | H91: 1.2149
A92: 6 | B92: TOTAL DO SERVIÇO - R$ | H92: 2.67
A94: 7 | B94: CODEVASF | E94: COMPOSIÇÃO DE PREÇO UNITÁRIO
A95: =A94 -> 7 | B95: OBRA: | C95: PAVIMENTAÇÃO ASFÁLTICA EM CBUQ - ESTRADA DE ACESSO AOS TÚNIES (SERRA DA SAUDADE / MG) - ITEM 2 | G95: DATA: | H95: SETEMBRO / 2023
A96: 7 | B96: SERVIÇO: | C96: CARGA, MANOBRA E DESCARGA DE SOLOS E MATERIAIS GRANULARES EM CAMINHÃO BASCULANTE | E96: SINAPI | F96: 100976 | G96: UNIDADE: | H96: M3
A97: 7
A98: 7 | B98: TIPO ITEM | C98: CODIGO ITEM | D98: DESCRIÇÃO ITEM | E98: UNIDADE ITEM | F98: COEFICIENTE | G98: PRECO UNITARIO | H98: CUSTO TOTAL
A99: 7 | B99: COMPOSICAO | C99: 5940 | D99: PÁ CARREGADEIRA SOBRE RODAS, POTÊNCIA LÍQUIDA 128 HP, CAPACIDADE DA CAÇAMBA 1,7 A 2,8 M3, PESO OPERACIONAL 11632 KG | E99: CHP | F99: 0,0083000 | G99: 217,72 | H99: 1.8 | I99: =VLOOKUP(A99,ORÇAMENTO!A$10:F$40,6) -> 2800 | J99: 5040 | K99: E
A100: 7 | B100: COMPOSICAO | C100: 5942 | D100: PÁ CARREGADEIRA SOBRE RODAS, POTÊNCIA LÍQUIDA 128 HP, CAPACIDADE DA CAÇAMBA 1,7 A 2,8 M3, PESO OPERACIONAL 11632 KG | E100: CHI | F100: 0,0074000 | G100: 95,85 | H100: 0.7 | I100: =VLOOKUP(A100,ORÇAMENTO!A$10:F$40,6) -> 2800 | J100: 1960 | K100: E
A101: 7 | B101: COMPOSICAO | C101: 89883 | D101: CAMINHÃO BASCULANTE 18 M3, COM CAVALO MECÂNICO DE CAPACIDADE MÁXIMA DE TRAÇÃO COMBINADO DE 45000 KG, POTÊNCIA 330 CV, INCLUSIVE SEMIREBOQUE COM CAÇAMBA METÁLICA | E101: CHP | F101: 0,0153000 | G101: 348,45 | H101: 5.33 | I101: =VLOOKUP(A101,ORÇAMENTO!A$10:F$40,6) -> 2800 | J101: 14924 | K101: E
A102: 7 | B102: COMPOSICAO | C102: 89884 | D102: CAMINHÃO BASCULANTE 18 M3, COM CAVALO MECÂNICO DE CAPACIDADE MÁXIMA DE TRAÇÃO COMBINADO DE 45000 KG, POTÊNCIA 330 CV, INCLUSIVE SEMIREBOQUE COM CAÇAMBA METÁLICA | E102: CHI | F102: 0,0095000 | G102: 93,65 | H102: 0.88 | I102: =VLOOKUP(A102,ORÇAMENTO!A$10:F$40,6) -> 2800 | J102: 2464 | K102: E
A103: 7 | B103: PRODUÇÃO DA EQUIPE | E103: 1 | F103: CUSTO | H103: 8.71
A104: 7 | B104: TOTAL | H104: 8.71
A105: 7 | B105: BDI % | H105: 1.2149
A106: 7 | B106: TOTAL DO SERVIÇO - R$ | H106: 10.58
A107: 7
A108: 8 | B108: CODEVASF | E108: COMPOSIÇÃO DE PREÇO UNITÁRIO
A109: =A108 -> 8 | B109: OBRA: | C109: PAVIMENTAÇÃO ASFÁLTICA EM CBUQ - ESTRADA DE ACESSO AOS TÚNIES (SERRA DA SAUDADE / MG) - ITEM 2 | G109: DATA: | H109: SETEMBRO / 2023
A110: 8 | B110: SERVIÇO: | C110: REGULARIZAÇÃO E COMPACTAÇÃO DO SUBLEITO | E110: SICRO | F110: 100576 | G110: UNIDADE: | H110: M2
A111: 8
A112: 8 | B112: TIPO ITEM | C112: CODIGO ITEM | D112: DESCRIÇÃO ITEM | E112: UNIDADE ITEM | F112: COEFICIENTE | G112: PRECO UNITARIO | H112: CUSTO TOTAL
A113: 8 | B113: COMPOSICAO | C113: 5901 | D113: CAMINHÃO PIPA 10.000 L TRUCADO, PESO BRUTO TOTAL 23.000 KG, CARGA ÚTIL MÁXIMA 15.935 KG, DISTÂNCIA ENTRE EIXOS 4,8 M, POTÊNCIA 230 CV, INCLUSIVE TANQUE DE AÇO PARA TRANSPORTE DE ÁGUA | E113: CHP | F113: 0,0010000 | G113: 294,94 | H113: 0.29 | I113: =VLOOKUP(A113,ORÇAMENTO!A$10:F$40,6) -> 14000 | J113: 4060 | K113: E
A114: 8 | B114: COMPOSICAO | C114: 5903 | D114: CAMINHÃO PIPA 10.000 L TRUCADO, PESO BRUTO TOTAL 23.000 KG, CARGA ÚTIL MÁXIMA 15.935 KG, DISTÂNCIA ENTRE EIXOS 4,8 M, POTÊNCIA 230 CV, INCLUSIVE TANQUE DE AÇO PARA TRANSPORTE DE ÁGUA | E114: CHI | F114: 0,0070000 | G114: 72,55 | H114: 0.5 | I114: =VLOOKUP(A114,ORÇAMENTO!A$10:F$40,6) -> 14000 | J114: 7000 | K114: E
A115: 8 | B115: COMPOSICAO | C115: 5932 | D115: MOTONIVELADORA POTÊNCIA BÁSICA LÍQUIDA (PRIMEIRA MARCHA) 125 HP, PESO BRUTO 13032 KG, LARGURA DA LÂMINA DE 3,7 M | E115: CHP | F115: 0,0001000 | G115: 262,71 | H115: 0.02 | I115: =VLOOKUP(A115,ORÇAMENTO!A$10:F$40,6) -> 14000 | J115: 280 | K115: E
A116: 8 | B116: COMPOSICAO | C116: 5934 | D116: MOTONIVELADORA POTÊNCIA BÁSICA LÍQUIDA (PRIMEIRA MARCHA) 125 HP, PESO BRUTO 13032 KG, LARGURA DA LÂMINA DE 3,7 M | E116: CHI | F116: 0,0080000 | G116: 109,40 | H116: 0.87 | I116: =VLOOKUP(A116,ORÇAMENTO!A$10:F$40,6) -> 14000 | J116: 12180 | K116: E
A117: 8 | B117: COMPOSICAO | C117: 73436 | D117: ROLO COMPACTADOR VIBRATÓRIO PÉ DE CARNEIRO PARA SOLOS, POTÊNCIA 80 HP, PESO OPERACIONAL SEM/COM LASTRO 7,4 / 8,8 T, LARGURA DE TRABALHO 1,68 M | E117: CHP | F117: 0,0020000 | G117: 163,19 | H117: 0.32 | I117: =VLOOKUP(A117,ORÇAMENTO!A$10:F$40,6) -> 14000 | J117: 4480 | K117: E
A118: 8 | B118: COMPOSICAO | C118: 88316 | D118: SERVENTE COM ENCARGOS COMPLEMENTARES | E118: H | F118: 0,0080000 | G118: 19,76 | H118: 0.15 | I118: =VLOOKUP(A118,ORÇAMENTO!A$10:F$40,6) -> 14000 | J118: 2100 | K118: P
A119: 8 | B119: COMPOSICAO | C119: 93244 | D119: ROLO COMPACTADOR VIBRATÓRIO PÉ DE CARNEIRO PARA SOLOS, POTÊNCIA 80 HP, PESO OPERACIONAL SEM/COM LASTRO 7,4 / 8,8 T, LARGURA DE TRABALHO 1,68 M | E119: CHI | F119: 0,0060000 | G119: 71,18 | H119: 0.42 | I119: =VLOOKUP(A119,ORÇAMENTO!A$10:F$40,6) -> 14000 | J119: 5880 | K119: E
A120: 8 | I120: =VLOOKUP(A120,ORÇAMENTO!A$10:F$40,6) -> 14000 | J120: 0 | K120: E
A121: 8 | B121: PRODUÇÃO DA EQUIPE | E121: 1 | F121: CUSTO | H121: 2.57
A122: 8 | B122: TOTAL | H122: 2.57
A123: 8 | B123: BDI % | H123: 1.2149
A124: 8 | B124: TOTAL DO SERVIÇO - R$ | H124: 3.12
A125: 8
A126: 9 | B126: CODEVASF | E126: COMPOSIÇÃO DE PREÇO UNITÁRIO
A127: =A126 -> 9 | B127: OBRA: | C127: PAVIMENTAÇÃO ASFÁLTICA EM CBUQ - ESTRADA DE ACESSO AOS TÚNIES (SERRA DA SAUDADE / MG) - ITEM 2 | G127: DATA: | H127: SETEMBRO / 2023
A128: 9 | B128: SERVIÇO: | C128: EXECUÇÃO E COMPACTAÇÃO DE BASE E OU SUB BASE PARA PAVIMENTAÇÃO DE BICA CORRIDA - EXCLUSIVE CARGA E TRANSPORTE | E128: SINAPI | F128: 96396 | G128: UNIDADE: | H128: M3
A129: 9
A130: 9 | B130: TIPO ITEM | C130: CODIGO ITEM | D130: DESCRIÇÃO ITEM | E130: UNIDADE ITEM | F130: COEFICIENTE | G130: PRECO UNITARIO | H130: CUSTO TOTAL
A131: 9 | B131: COMPOSICAO | C131: 5684 | D131: ROLO COMPACTADOR VIBRATÓRIO DE UM CILINDRO AÇO LISO, POTÊNCIA 80 HP, PESO OPERACIONAL MÁXIMO 8,1 T, IMPACTO DINÂMICO 16,15 / 9,5 T, LARGURA DE TRABALHO 1,68 M | E131: CHP | F131: 0,0090000 | G131: 159,98 | H131: 1.43 | I131: =VLOOKUP(A131,ORÇAMENTO!A$10:F$40,6) -> 2000 | J131: 2860 | K131: E
A132: 9 | B132: COMPOSICAO | C132: 5685 | D132: ROLO COMPACTADOR VIBRATÓRIO DE UM CILINDRO AÇO LISO, POTÊNCIA 80 HP, PESO OPERACIONAL MÁXIMO 8,1 T, IMPACTO DINÂMICO 16,15 / 9,5 T, LARGURA DE TRABALHO 1,68 M | E132: CHI | F132: 0,0210000 | G132: 69,53 | H132: 1.46 | I132: =VLOOKUP(A132,ORÇAMENTO!A$10:F$40,6) -> 2000 | J132: 2920 | K132: E
A133: 9 | B133: COMPOSICAO | C133: 5901 | D133: CAMINHÃO PIPA 10.000 L TRUCADO, PESO BRUTO TOTAL 23.000 KG, CARGA ÚTIL MÁXIMA 15.935 KG, DISTÂNCIA ENTRE EIXOS 4,8 M, POTÊNCIA 230 CV, INCLUSIVE TANQUE DE AÇO PARA TRANSPORTE DE ÁGUA | E133: CHP | F133: 0,0020000 | G133: 294,94 | H133: 0.58 | I133: =VLOOKUP(A133,ORÇAMENTO!A$10:F$40,6) -> 2000 | J133: 1160 | K133: E
A134: 9 | B134: COMPOSICAO | C134: 5903 | D134: CAMINHÃO PIPA 10.000 L TRUCADO, PESO BRUTO TOTAL 23.000 KG, CARGA ÚTIL MÁXIMA 15.935 KG, DISTÂNCIA ENTRE EIXOS 4,8 M, POTÊNCIA 230 CV, INCLUSIVE TANQUE DE AÇO PARA TRANSPORTE DE ÁGUA | E134: CHI | F134: 0,0280000 | G134: 72,55 | H134: 2.03 | I134: =VLOOKUP(A134,ORÇAMENTO!A$10:F$40,6) -> 2000 | J134: 4060 | K134: E
A135: 9 | B135: COMPOSICAO | C135: 5932 | D135: MOTONIVELADORA POTÊNCIA BÁSICA LÍQUIDA (PRIMEIRA MARCHA) 125 HP, PESO BRUTO 13032 KG, LARGURA DA LÂMINA DE 3,7 M | E135: CHP | F135: 0,0080000 | G135: 262,71 | H135: 2.1 | I135: =VLOOKUP(A135,ORÇAMENTO!A$10:F$40,6) -> 2000 | J135: =H135*I135 -> 4200 | K135: E
A136: 9 | B136: COMPOSICAO | C136: 5934 | D136: MOTONIVELADORA POTÊNCIA BÁSICA LÍQUIDA (PRIMEIRA MARCHA) 125 HP, PESO BRUTO 13032 KG, LARGURA DA LÂMINA DE 3,7 M | E136: CHI | F136: 0,0220000 | G136: 109,40 | H136: 2.4 | I136: =VLOOKUP(A136,ORÇAMENTO!A$10:F$40,6) -> 2000 | J136: 4800 | K136: E
A137: 9 | B137: COMPOSICAO | C137: 88316 | D137: SERVENTE COM ENCARGOS COMPLEMENTARES | E137: H | F137: 0,0300000 | G137: 19,76 | H137: 0.59 | I137: =VLOOKUP(A137,ORÇAMENTO!A$10:F$40,6) -> 2000 | J137: 1180 | K137: P
A138: 9 | B138: COMPOSICAO | C138: 4748 | D138: PEDRA BRITADA OU BICA CORRIDA, NAO CLASSIFICADA (POSTO PEDREIRA/FORNECEDOR, SEM FRETE) | E138: M3 | F138: 1,0000000 | G138: =CPU!G138 -> 91 | H138: 0 | I138: =VLOOKUP(A138,ORÇAMENTO!A$10:F$40,6) -> 2000 | J138: 0 | K138: M
A139: 9 | B139: COMPOSICAO | C139: 96463 | D139: ROLO COMPACTADOR DE PNEUS, ESTATICO, PRESSAO VARIAVEL, POTENCIA 110 HP, PESO SEM/COM LASTRO 10,8/27 T, LARGURA DE ROLAGEM 2,30 M | E139: CHP | F139: 0,0040000 | G139: 218,21 | H139: 0.87 | I139: =VLOOKUP(A139,ORÇAMENTO!A$10:F$40,6) -> 2000 | J139: 1740 | K139: E
A140: 9 | B140: COMPOSICAO | C140: 96464 | D140: ROLO COMPACTADOR DE PNEUS, ESTATICO, PRESSAO VARIAVEL, POTENCIA 110 HP, PESO SEM/COM LASTRO 10,8/27 T, LARGURA DE ROLAGEM 2,30 M | E140: CHI | F140: 0,0260000 | G140: 95,83 | H140: 2.49 | I140: =VLOOKUP(A140,ORÇAMENTO!A$10:F$40,6) -> 2000 | J140: 4980 | K140: E
A141: 9 | H141: 0 | I141: =VLOOKUP(A141,ORÇAMENTO!A$10:F$40,6) -> 2000 | J141: 0 | K141: E
A142: 9 | B142: PRODUÇÃO DA EQUIPE | E142: 1 | F142: CUSTO | H142: 13.95
A143: 9 | B143: TOTAL | H143: 13.95
A144: 9 | B144: BDI % | H144: 1.2149
A145: 9 | B145: TOTAL DO SERVIÇO - R$ | H145: 16.95
A146: 9
A147: 10 | B147: CODEVASF | E147: COMPOSIÇÃO DE PREÇO UNITÁRIO
A148: =A147 -> 10 | B148: OBRA: | C148: PAVIMENTAÇÃO ASFÁLTICA EM CBUQ - ESTRADA DE ACESSO AOS TÚNIES (SERRA DA SAUDADE / MG) - ITEM 2 | G148: DATA: | H148: SETEMBRO / 2023
A149: 10 | B149: SERVIÇO: | C149: IMPRIMAÇÃO COM EMULSÃO ASFÁLTICA (EAI) | E149: SINAPI | F149: 96401 | G149: UNIDADE: | H149: M2
A150: 10
A151: 10 | B151: TIPO ITEM | C151: CODIGO ITEM | D151: DESCRIÇÃO ITEM | E151: UNIDADE ITEM | F151: COEFICIENTE | G151: PRECO UNITARIO | H151: CUSTO TOTAL
A152: 10 | B152: COMPOSICAO | C152: 5839 | D152: VASSOURA MECÂNICA REBOCÁVEL COM ESCOVA CILÍNDRICA, LARGURA ÚTIL DE VARRIMENTO DE 2,44 M | E152: CHP | F152: 0,0020000 | G152: 10.3 | H152: 0.02 | I152: =VLOOKUP(A152,ORÇAMENTO!A$10:F$40,6) -> 14000 | J152: 280 | K152: E
A153: 10 | B153: COMPOSICAO | C153: 5841 | D153: VASSOURA MECÂNICA REBOCÁVEL COM ESCOVA CILÍNDRICA, LARGURA ÚTIL DE VARRIMENTO DE 2,44 M | E153: CHI | F153: 0,0040000 | G153: 5.18 | H153: 0.02 | I153: =VLOOKUP(A153,ORÇAMENTO!A$10:F$40,6) -> 14000 | J153: 280 | K153: E
A154: 10 | B154: INSUMO | C154: ANP | D154: EMULSÃO ASFÁLTICA PARA IMPRIMAÇÃO - EAI (FORNECIMENTO COM BDI DIFERENCIADO) | E154: T | F154: 0.0013 | H154: 0 | I154: =VLOOKUP(A154,ORÇAMENTO!A$10:F$40,6) -> 14000 | J154: 0 | K154: M
A155: 10 | B155: COMPOSICAO | C155: 83362 | D155: ESPARGIDOR DE ASFALTO PRESSURIZADO, TANQUE 6 M3 COM ISOLAÇÃO TÉRMICA, AQUECIDO COM 2 MAÇARICOS, COM BARRA ESPARGIDORA 3,60 M, MONTADO SOBRE CAMINHÃO TOCO, PBT 14.300 KG, POTÊNCIA 185 CV | E155: CHP | F155: 0,0010000 | G155: 256.34 | H155: 0.25 | I155: =VLOOKUP(A155,ORÇAMENTO!A$10:F$40,6) -> 14000 | J155: 3500 | K155: E
A156: 10 | B156: COMPOSICAO | C156: 88316 | D156: SERVENTE COM ENCARGOS COMPLEMENTARES | E156: H | F156: 0,0060000 | G156: 19.76 | H156: 0.11 | I156: =VLOOKUP(A156,ORÇAMENTO!A$10:F$40,6) -> 14000 | J156: 1540 | K156: P
A157: 10 | B157: COMPOSICAO | C157: 89035 | D157: TRATOR DE PNEUS, POTÊNCIA 85 CV, TRAÇÃO 4X4, PESO COM LASTRO DE 4.675 KG | E157: CHP | F157: 0,0020000 | G157: 135.08 | H157: 0.27 | I157: =VLOOKUP(A157,ORÇAMENTO!A$10:F$40,6) -> 14000 | J157: 3780 | K157: E
A158: 10 | B158: COMPOSICAO | C158: 89036 | D158: TRATOR DE PNEUS, POTÊNCIA 85 CV, TRAÇÃO 4X4, PESO COM LASTRO DE 4.675 KG | E158: CHI | F158: 0,0040000 | G158: 56.48 | H158: 0.22 | I158: =VLOOKUP(A158,ORÇAMENTO!A$10:F$40,6) -> 14000 | J158: 3080 | K158: E
A159: 10 | B159: COMPOSICAO | C159: 91486 | D159: ESPARGIDOR DE ASFALTO PRESSURIZADO, TANQUE 6 M3 COM ISOLAÇÃO TÉRMICA, AQUECIDO COM 2 MAÇARICOS, COM BARRA ESPARGIDORA 3,60 M, MONTADO SOBRE CAMINHÃO TOCO, PBT 14.300 KG, POTÊNCIA 185 CV | E159: CHI | F159: 0,0050000 | G159: 68.43 | H159: 0.34 | I159: =VLOOKUP(A159,ORÇAMENTO!A$10:F$40,6) -> 14000 | J159: 4760 | K159: E
A160: 10 | H160: 0 | I160: =VLOOKUP(A160,ORÇAMENTO!A$10:F$40,6) -> 14000 | J160: 0 | K160: E
A161: 10 | B161: PRODUÇÃO DA EQUIPE | E161: 1 | F161: CUSTO | H161: 1.23
A162: 10 | B162: TOTAL | H162: 1.23
A163: 10 | B163: BDI % | H163: 1.2149
A164: 10 | B164: TOTAL DO SERVIÇO - R$ | H164: 1.49
A165: 10
A166: 11 | B166: CODEVASF | E166: COMPOSIÇÃO DE PREÇO UNITÁRIO
A167: =A166 -> 11 | B167: OBRA: | C167: PAVIMENTAÇÃO ASFÁLTICA EM CBUQ - ESTRADA DE ACESSO AOS TÚNIES (SERRA DA SAUDADE / MG) - ITEM 2 | G167: DATA: | H167: SETEMBRO / 2023
A168: 11 | B168: SERVIÇO: | C168: PINTURA DE LIGAÇÃO COM EMULSÃO ASFÁLTICA RR-1C | E168: SINAPI | F168: 96402 | G168: UNIDADE: | H168: M2
A169: 11
A170: 11 | B170: TIPO ITEM | C170: CODIGO ITEM | D170: DESCRIÇÃO ITEM | E170: UNIDADE ITEM | F170: COEFICIENTE | G170: PRECO UNITARIO | H170: CUSTO TOTAL
A171: 11 | B171: COMPOSICAO | C171: 5839 | D171: VASSOURA MECÂNICA REBOCÁVEL COM ESCOVA CILÍNDRICA, LARGURA ÚTIL DE VARRIMENTO DE 2,44 M | E171: CHP | F171: 0,0020000 | G171: 10.3 | H171: 0.02 | I171: =VLOOKUP(A171,ORÇAMENTO!A$10:F$40,6) -> 14600 | J171: 292 | K171: E
A172: 11 | B172: COMPOSICAO | C172: 5841 | D172: VASSOURA MECÂNICA REBOCÁVEL COM ESCOVA CILÍNDRICA, LARGURA ÚTIL DE VARRIMENTO DE 2,44 M | E172: CHI | F172: 0,0040000 | G172: 5.18 | H172: 0.02 | I172: =VLOOKUP(A172,ORÇAMENTO!A$10:F$40,6) -> 14600 | J172: 292 | K172: E
A173: 11 | B173: INSUMO | C173: 41903 | D173: EMULSAO ASFALTICA CATIONICA RR-2C PARA USO EM PAVIMENTACAO ASFALTICA (FORNECIMENTO COM BDI DIFERENCIADO) | E173: KG | F173: 0,4500000 | H173: 0 | I173: =VLOOKUP(A173,ORÇAMENTO!A$10:F$40,6) -> 14600 | J173: 0 | K173: M
A174: 11 | B174: COMPOSICAO | C174: 83362 | D174: ESPARGIDOR DE ASFALTO PRESSURIZADO, TANQUE 6 M3 COM ISOLAÇÃO TÉRMICA, AQUECIDO COM 2 MAÇARICOS, COM BARRA ESPARGIDORA 3,60 M, MONTADO SOBRE CAMINHÃO TOCO, PBT 14.300 KG, POTÊNCIA 185 CV | E174: CHP | F174: 0,0004000 | G174: 256.34 | H174: 0.1 | I174: =VLOOKUP(A174,ORÇAMENTO!A$10:F$40,6) -> 14600 | J174: 1460 | K174: E
A175: 11 | B175: COMPOSICAO | C175: 88316 | D175: SERVENTE COM ENCARGOS COMPLEMENTARES | E175: H | F175: 0,0055000 | G175: 19.76 | H175: 0.1 | I175: =VLOOKUP(A175,ORÇAMENTO!A$10:F$40,6) -> 14600 | J175: 1460 | K175: P
A176: 11 | B176: COMPOSICAO | C176: 89035 | D176: TRATOR DE PNEUS, POTÊNCIA 85 CV, TRAÇÃO 4X4, PESO COM LASTRO DE 4.675 KG | E176: CHP | F176: 0,0017000 | G176: 135.08 | H176: 0.22 | I176: =VLOOKUP(A176,ORÇAMENTO!A$10:F$40,6) -> 14600 | J176: 3212 | K176: E
A177: 11 | B177: COMPOSICAO | C177: 89036 | D177: TRATOR DE PNEUS, POTÊNCIA 85 CV, TRAÇÃO 4X4, PESO COM LASTRO DE 4.675 KG | E177: CHI | F177: 0,0038000 | G177: 56.48 | H177: 0.21 | I177: =VLOOKUP(A177,ORÇAMENTO!A$10:F$40,6) -> 14600 | J177: 3066 | K177: E
A178: 11 | B178: COMPOSICAO | C178: 91486 | D178: ESPARGIDOR DE ASFALTO PRESSURIZADO, TANQUE 6 M3 COM ISOLAÇÃO TÉRMICA, AQUECIDO COM 2 MAÇARICOS, COM BARRA ESPARGIDORA 3,60 M, MONTADO SOBRE CAMINHÃO TOCO, PBT 14.300 KG, POTÊNCIA 185 CV | E178: CHI | F178: 0,0051000 | G178: 68.43 | H178: 0.34 | I178: =VLOOKUP(A178,ORÇAMENTO!A$10:F$40,6) -> 14600 | J178: 4964 | K178: E
A179: 11 | H179: 0 | I179: =VLOOKUP(A179,ORÇAMENTO!A$10:F$40,6) -> 14600 | J179: 0 | K179: E
A180: 11 | B180: PRODUÇÃO DA EQUIPE | E180: 1 | F180: CUSTO | H180: 1.01
A181: 11 | B181: TOTAL | H181: 1.01
A182: 11 | B182: BDI % | H182: 1.2149
A183: 11 | B183: TOTAL DO SERVIÇO - R$ | H183: 1.23
A184: 11
A185: 12 | B185: CODEVASF | E185: COMPOSIÇÃO DE PREÇO UNITÁRIO
A186: =A185 -> 12 | B186: OBRA: | C186: PAVIMENTAÇÃO ASFÁLTICA EM CBUQ - ESTRADA DE ACESSO AOS TÚNIES (SERRA DA SAUDADE / MG) - ITEM 2 | G186: DATA: | H186: SETEMBRO / 2023
A187: 12 | B187: SERVIÇO: | C187: EXECUÇÃO DE PAVIMENTO COM APLICAÇÃO DE CONCRETO ASFÁLTICO USINADO A QUENTE (CBUQ), CAMADA DE ROLAMENTO - EXCLUSIVE TRANSPORTE | E187: SINAPI | F187: 95995 | G187: UNIDADE: | H187: M3
A188: 12
A189: 12 | B189: TIPO ITEM | C189: CODIGO ITEM | D189: DESCRIÇÃO ITEM | E189: UNIDADE ITEM | F189: COEFICIENTE | G189: PRECO UNITARIO | H189: CUSTO TOTAL
A190: 12 | B190: INSUMO | C190: 1518 | D190: CONCRETO BETUMINOSO USINADO A QUENTE (CBUQ) PARA PAVIMENTACAO ASFALTICA, PADRAO DNIT, FAIXA C, COM CAP 50/70 - AQUISICAO POSTO USINA (FORNECIMENTO COM BDI DIFERENCIADO) | E190: T | F190: 2,5548000 | H190: 0 | I190: =VLOOKUP(A190,ORÇAMENTO!A$10:F$40,6) -> 530 | J190: 0 | K190: M
A191: 12 | B191: COMPOSICAO | C191: 5835 | D191: VIBROACABADORA DE ASFALTO SOBRE ESTEIRAS, LARGURA DE PAVIMENTAÇÃO 1,90 M A 5,30 M, POTÊNCIA 105 HP CAPACIDADE 450 T/H | E191: CHP | F191: 0,0464000 | G191: 396,75 | H191: 18.4 | I191: =VLOOKUP(A191,ORÇAMENTO!A$10:F$40,6) -> 530 | J191: 9752 | K191: E
A192: 12 | B192: COMPOSICAO | C192: 5837 | D192: VIBROACABADORA DE ASFALTO SOBRE ESTEIRAS, LARGURA DE PAVIMENTAÇÃO 1,90 M A 5,30 M, POTÊNCIA 105 HP CAPACIDADE 450 T/H | E192: CHI | F192: 0,0949000 | G192: 165,12 | H192: 15.66 | I192: =VLOOKUP(A192,ORÇAMENTO!A$10:F$40,6) -> 530 | J192: 8299.8 | K192: E
A193: 12 | B193: COMPOSICAO | C193: 88314 | D193: RASTELEIRO COM ENCARGOS COMPLEMENTARES | E193: H | F193: 1,1301000 | G193: 26,52 | H193: 29.97 | I193: =VLOOKUP(A193,ORÇAMENTO!A$10:F$40,6) -> 530 | J193: 15884.1 | K193: P
A194: 12 | B194: COMPOSICAO | C194: 91386 | D194: CAMINHÃO BASCULANTE 10 M3, TRUCADO CABINE SIMPLES, PESO BRUTO TOTAL 23.000 KG, CARGA ÚTIL MÁXIMA 15.935 KG, DISTÂNCIA ENTRE EIXOS 4,80 M, POTÊNCIA 230 CV INCLUSIVE CAÇAMBA METÁLICA | E194: CHP | F194: 0,0464000 | G194: 252,13 | H194: 11.69 | I194: =VLOOKUP(A194,ORÇAMENTO!A$10:F$40,6) -> 530 | J194: 6195.7 | K194: E
A195: 12 | B195: COMPOSICAO | C195: 95631 | D195: ROLO COMPACTADOR VIBRATORIO TANDEM, ACO LISO, POTENCIA 125 HP, PESO SEM/COM LASTRO 10,20/11,65 T, LARGURA DE TRABALHO 1,73 M | E195: CHP | F195: 0,0805000 | G195: 228,02 | H195: 18.35 | I195: =VLOOKUP(A195,ORÇAMENTO!A$10:F$40,6) -> 530 | J195: 9725.5 | K195: E
A196: 12 | B196: COMPOSICAO | C196: 95632 | D196: ROLO COMPACTADOR VIBRATORIO TANDEM, ACO LISO, POTENCIA 125 HP, PESO SEM/COM LASTRO 10,20/11,65 T, LARGURA DE TRABALHO 1,73 M | E196: CHI | F196: 0,0607000 | G196: 89,32 | H196: 5.42 | I196: =VLOOKUP(A196,ORÇAMENTO!A$10:F$40,6) -> 530 | J196: 2872.6 | K196: E
A197: 12 | B197: COMPOSICAO | C197: 96155 | D197: TRATOR DE PNEUS COM POTÊNCIA DE 85 CV, TRAÇÃO 4X4, COM VASSOURA MECÂNICA ACOPLADA | E197: CHI | F197: 0,1071000 | G197: 61,42 | H197: 6.57 | I197: =VLOOKUP(A197,ORÇAMENTO!A$10:F$40,6) -> 530 | J197: 3482.1 | K197: E
A198: 12 | B198: COMPOSICAO | C198: 96157 | D198: TRATOR DE PNEUS COM POTÊNCIA DE 85 CV, TRAÇÃO 4X4, COM VASSOURA MECÂNICA ACOPLADA | E198: CHP | F198: 0,0341000 | G198: 144,29 | H198: 4.92 | I198: =VLOOKUP(A198,ORÇAMENTO!A$10:F$40,6) -> 530 | J198: 2607.6 | K198: E
A199: 12 | B199: COMPOSICAO | C199: 96463 | D199: ROLO COMPACTADOR DE PNEUS, ESTATICO, PRESSAO VARIAVEL, POTENCIA 110 HP, PESO SEM/COM LASTRO 10,8/27 T, LARGURA DE ROLAGEM 2,30 M | E199: CHP | F199: 0,0419000 | G199: 218,21 | H199: 9.14 | I199: =VLOOKUP(A199,ORÇAMENTO!A$10:F$40,6) -> 530 | J199: =H199*I199 -> 4844.2 | K199: E
A200: 12 | B200: COMPOSICAO | C200: 96464 | D200: ROLO COMPACTADOR DE PNEUS, ESTATICO, PRESSAO VARIAVEL, POTENCIA 110 HP, PESO SEM/COM LASTRO 10,8/27 T, LARGURA DE ROLAGEM 2,30 M | E200: CHI | F200: 0,0990000 | G200: 95,83 | H200: 9.48 | I200: =VLOOKUP(A200,ORÇAMENTO!A$10:F$40,6) -> 530 | J200: 5024.4 | K200: E
A201: 12 | H201: 0 | I201: =VLOOKUP(A201,ORÇAMENTO!A$10:F$40,6) -> 530 | J201: 0 | K201: E
... 170 more rows
